{"text_format":"3","workbook":"xlsx","n_sheets":7,"sheets":["附录C(投资规模)","附录C(用地规模)","附录C(信息咨询)","附录C(非差额累进)","附录C(工日单价)","附录D","附录E"],"not_rendered":{"defined_names":2},"read":"whole","date_system":"1900"}

{"sheet":"附录C(投资规模)","index":0,"n_rows":20,"n_cols":9,"rows_kept":20,"merged":[[0,1,0,2],[0,3,0,4],[0,5,0,6],[1,1,1,2]]}
["预算编码","预算基数（C）",null,"基本工作基准预算（元）",null,"可选工作基准预算（元）"]
[null,"万元",null,"基准费率（‰）","最大金额（元)","基准费率（‰）","最大金额（元)"]
["C1-1",0,{"$f":"B4","v":100},10,{"v":0,"d":"0.00"},2,{"v":0,"d":"0.00"},0,{"$f":"H3&\":{ref:'\"&A3&\"',staLine:\"&B3&\",endLine:\"&C3&\",basic:{staPrice:\"&E3&\",rate:\"&D3/1000&\"},optional:{staPrice:\"&G3&\",rate:\"&F3/1000&\"}}\"","v":"0:{ref:'C1-1',staLine:0,endLine:100,basic:{staPrice:0,rate:0.01},optional:{staPrice:0,rate:0.002}}"}]
["C1-2",100,{"$f":"B5","v":300},8,{"$f":"IF(ISNUMBER(E2),E2+($B4-$B3)*D3*10,($B4-$B3)*D3*10)","v":{"v":10000,"d":"10,000.00"}},1.6,{"$f":"IF(ISNUMBER(G2),G2+($B4-$B3)*F3*10,($B4-$B3)*F3*10)","v":{"v":2000,"d":"2,000.00"}},1,{"$f":"H4&\":{ref:'\"&A4&\"',staLine:\"&B4&\",endLine:\"&C4&\",basic:{staPrice:\"&E4&\",rate:\"&D4/1000&\"},optional:{staPrice:\"&G4&\",rate:\"&F4/1000&\"}}\"","v":"1:{ref:'C1-2',staLine:100,endLine:300,basic:{staPrice:10000,rate:0.008},optional:{staPrice:2000,rate:0.0016}}"}]
["C1-3",300,500,5,{"$f":"IF(ISNUMBER(E4),E4+($B5-$B4)*D4*10,($B5-$B4)*D4*10)","v":{"v":26000,"d":"26,000.00"}},1,{"$f":"IF(ISNUMBER(G4),G4+($B5-$B4)*F4*10,($B5-$B4)*F4*10)","v":{"v":5200,"d":"5,200.00"}},2,"2:{ref:'C1-3',staLine:300,endLine:500,basic:{staPrice:26000,rate:0.005},optional:{staPrice:5200,rate:0.001}}"]
["C1-4",500,{"v":1000,"d":"1,000"},4,{"v":36000,"d":"36,000.00"},0.8,{"v":7200,"d":"7,200.00"},3,"3:{ref:'C1-4',staLine:500,endLine:1000,basic:{staPrice:36000,rate:0.004},optional:{staPrice:7200,rate:0.0008}}"]
["C1-5",{"v":1000,"d":"1,000"},{"v":5000,"d":"5,000"},3,{"v":56000,"d":"56,000.00"},0.6,{"v":11200,"d":"11,200.00"},4,"4:{ref:'C1-5',staLine:1000,endLine:5000,basic:{staPrice:56000,rate:0.003},optional:{staPrice:11200,rate:0.0006}}"]
["C1-6",{"v":5000,"d":"5,000"},{"v":10000,"d":"10,000"},2,{"v":176000,"d":"176,000.00"},0.4,{"v":35200,"d":"35,200.00"},5,"5:{ref:'C1-6',staLine:5000,endLine:10000,basic:{staPrice:176000,rate:0.002},optional:{staPrice:35200,rate:0.0004}}"]
["C1-7",{"v":10000,"d":"10,000"},{"v":30000,"d":"30,000"},1.6,{"v":276000,"d":"276,000.00"},0.32,{"v":55200,"d":"55,200.00"},6,"6:{ref:'C1-7',staLine:10000,endLine:30000,basic:{staPrice:276000,rate:0.0016},optional:{staPrice:55200,rate:0.00032}}"]
["C1-8",{"v":30000,"d":"30,000"},{"v":50000,"d":"50,000"},1.3,{"v":596000,"d":"596,000.00"},0.26,{"v":119200,"d":"119,200.00"},7,"7:{ref:'C1-8',staLine:30000,endLine:50000,basic:{staPrice:596000,rate:0.0013},optional:{staPrice:119200,rate:0.00026}}"]
["C1-9",{"v":50000,"d":"50,000"},{"v":100000,"d":"100,000"},1,{"v":856000,"d":"856,000.00"},0.2,{"v":171200,"d":"171,200.00"},8,"8:{ref:'C1-9',staLine:50000,endLine:100000,basic:{staPrice:856000,rate:0.001},optional:{staPrice:171200,rate:0.0002}}"]
["C1-10",{"v":100000,"d":"100,000"},{"v":150000,"d":"150,000"},0.9,{"v":1356000,"d":"1,356,000.00"},0.18,{"v":271200,"d":"271,200.00"},9,"9:{ref:'C1-10',staLine:100000,endLine:150000,basic:{staPrice:1356000,rate:0.0009},optional:{staPrice:271200,rate:0.00018}}"]
["C1-11",{"v":150000,"d":"150,000"},{"v":200000,"d":"200,000"},0.8,{"v":1806000,"d":"1,806,000.00"},0.16,{"v":361200,"d":"361,200.00"},10,"10:{ref:'C1-11',staLine:150000,endLine:200000,basic:{staPrice:1806000,rate:0.0008},optional:{staPrice:361200,rate:0.00016}}"]
["C1-12",{"v":200000,"d":"200,000"},{"v":300000,"d":"300,000"},0.7,{"v":2206000,"d":"2,206,000.00"},0.14,{"v":441200,"d":"441,200.00"},11,"11:{ref:'C1-12',staLine:200000,endLine:300000,basic:{staPrice:2206000,rate:0.0007},optional:{staPrice:441200,rate:0.00014}}"]
["C1-13",{"v":300000,"d":"300,000"},{"v":400000,"d":"400,000"},0.6,{"v":2906000,"d":"2,906,000.00"},0.12,{"v":581200,"d":"581,200.00"},12,"12:{ref:'C1-13',staLine:300000,endLine:400000,basic:{staPrice:2906000,rate:0.0006},optional:{staPrice:581200,rate:0.00012}}"]
["C1-14",{"v":400000,"d":"400,000"},{"v":600000,"d":"600,000"},0.5,{"v":3506000,"d":"3,506,000.00"},0.1,{"v":701200,"d":"701,200.00"},13,"13:{ref:'C1-14',staLine:400000,endLine:600000,basic:{staPrice:3506000,rate:0.0005},optional:{staPrice:701200,rate:0.0001}}"]
["C1-15",{"v":600000,"d":"600,000"},{"v":800000,"d":"800,000"},0.4,{"v":4506000,"d":"4,506,000.00"},0.08,{"v":901200,"d":"901,200.00"},14,"14:{ref:'C1-15',staLine:600000,endLine:800000,basic:{staPrice:4506000,rate:0.0004},optional:{staPrice:901200,rate:0.00008}}"]
["C1-16",{"v":800000,"d":"800,000"},{"v":1000000,"d":"1,000,000"},0.3,{"v":5306000,"d":"5,306,000.00"},0.06,{"v":1061200,"d":"1,061,200.00"},15,"15:{ref:'C1-16',staLine:800000,endLine:1000000,basic:{staPrice:5306000,rate:0.0003},optional:{staPrice:1061200,rate:0.00006}}"]
["C1-17",{"v":1000000,"d":"1,000,000"},"null",0.25,{"v":5906000,"d":"5,906,000.00"},0.05,{"v":1181200,"d":"1,181,200.00"},16,"16:{ref:'C1-17',staLine:1000000,endLine:null,basic:{staPrice:5906000,rate:0.00025},optional:{staPrice:1181200,rate:0.00005}}"]
[{"$nulls":8},{"$f":"\"{\"&_xlfn.TEXTJOIN(\",\",TRUE,I3:I19)&\",}\"","v":"{0:{ref:'C1-1',staLine:0,endLine:100,basic:{staPrice:0,rate:0.01},optional:{staPrice:0,rate:0.002}},1:{ref:'C1-2',staLine:100,endLine:300,basic:{staPrice:10000,rate:0.008},optional:{staPrice:2000,rate:0.0016}},2:{ref:'C1-3',staLine:300,endLine:500,basic:{staPrice:26000,rate:0.005},optional:{staPrice:5200,rate:0.001}},3:{ref:'C1-4',staLine:500,endLine:1000,basic:{staPrice:36000,rate:0.004},optional:{staPrice:7200,rate:0.0008}},4:{ref:'C1-5',staLine:1000,endLine:5000,basic:{staPrice:56000,rate:0.003},optional:{staPrice:11200,rate:0.0006}},5:{ref:'C1-6',staLine:5000,endLine:10000,basic:{staPrice:176000,rate:0.002},optional:{staPrice:35200,rate:0.0004}},6:{ref:'C1-7',staLine:10000,endLine:30000,basic:{staPrice:276000,rate:0.0016},optional:{staPrice:55200,rate:0.00032}},7:{ref:'C1-8',staLine:30000,endLine:50000,basic:{staPrice:596000,rate:0.0013},optional:{staPrice:119200,rate:0.00026}},8:{ref:'C1-9',staLine:50000,endLine:100000,basic:{staPrice:856000,rate:0.001},optional:{staPrice:171200,rate:0.0002}},9:{ref:'C1-10',staLine:100000,endLine:150000,basic:{staPrice:1356000,rate:0.0009},optional:{staPrice:271200,rate:0.00018}},10:{ref:'C1-11',staLine:150000,endLine:200000,basic:{staPrice:1806000,rate:0.0008},optional:{staPrice:361200,rate:0.00016}},11:{ref:'C1-12',staLine:200000,endLine:300000,basic:{staPrice:2206000,rate:0.0007},optional:{staPrice:441200,rate:0.00014}},12:{ref:'C1-13',staLine:300000,endLine:400000,basic:{staPrice:2906000,rate:0.0006},optional:{staPrice:581200,rate:0.00012}},13:{ref:'C1-14',staLine:400000,endLine:600000,basic:{staPrice:3506000,rate:0.0005},optional:{staPrice:701200,rate:0.0001}},14:{ref:'C1-15',staLine:600000,endLine:800000,basic:{staPrice:4506000,rate:0.0004},optional:{staPrice:901200,rate:0.00008}},15:{ref:'C1-16',staLine:800000,endLine:1000000,basic:{staPrice:5306000,rate:0.0003},optional:{staPrice:1061200,rate:0.00006}},16:{ref:'C1-17',staLine:1000000,endLine:null,basic:{staPrice:5906000,rate:0.00025},optional:{staPrice:1181200,rate:0.00005}},}"}]

{"sheet":"附录C(用地规模)","index":1,"n_rows":9,"n_cols":9,"rows_kept":9,"merged":[[0,1,0,2],[0,3,0,4],[0,5,0,6],[1,1,1,2]]}
["预算编码","预算基数（S）",null,"基本工作基准预算（元）",null,"可选工作基准预算（元）"]
[null,"亩",null,"基准单价(元/亩)","最大金额（元)","基准单价(元/亩)","最大金额（元)"]
["C2-1",0,{"$f":"B4","v":50},200,{"v":0,"d":"0.00"},40,{"v":0,"d":"0.00"},0,{"$f":"H3&\":{ref:'\"&A3&\"',staLine:\"&B3&\",endLine:\"&C3&\",basic:{staPrice:\"&E3&\",rate:\"&D3&\"},optional:{staPrice:\"&G3&\",rate:\"&F3&\"}}\"","v":"0:{ref:'C2-1',staLine:0,endLine:50,basic:{staPrice:0,rate:200},optional:{staPrice:0,rate:40}}"}]
["C2-2",50,{"$f":"B5","v":100},160,{"$f":"IF(ISNUMBER(E2),E2+($B4-$B3)*D3,($B4-$B3)*D3)","v":{"v":10000,"d":"10,000.00"}},32,{"$f":"IF(ISNUMBER(G2),G2+($B4-$B3)*F3,($B4-$B3)*F3)","v":{"v":2000,"d":"2,000.00"}},1,"1:{ref:'C2-2',staLine:50,endLine:100,basic:{staPrice:10000,rate:160},optional:{staPrice:2000,rate:32}}"]
["C2-3",100,{"$f":"B6","v":500},120,{"$f":"IF(ISNUMBER(E4),E4+($B5-$B4)*D4,($B5-$B4)*D4)","v":{"v":18000,"d":"18,000.00"}},24,{"$f":"IF(ISNUMBER(G4),G4+($B5-$B4)*F4,($B5-$B4)*F4)","v":{"v":3600,"d":"3,600.00"}},2,"2:{ref:'C2-3',staLine:100,endLine:500,basic:{staPrice:18000,rate:120},optional:{staPrice:3600,rate:24}}"]
["C2-4",500,{"$f":"B7","v":{"v":1000,"d":"1,000"}},80,{"$f":"IF(ISNUMBER(E5),E5+($B6-$B5)*D5,($B6-$B5)*D5)","v":{"v":66000,"d":"66,000.00"}},16,{"$f":"IF(ISNUMBER(G5),G5+($B6-$B5)*F5,($B6-$B5)*F5)","v":{"v":13200,"d":"13,200.00"}},3,"3:{ref:'C2-4',staLine:500,endLine:1000,basic:{staPrice:66000,rate:80},optional:{staPrice:13200,rate:16}}"]
["C2-5",{"v":1000,"d":"1,000"},{"$f":"B8","v":{"v":5000,"d":"5,000"}},60,{"$f":"IF(ISNUMBER(E6),E6+($B7-$B6)*D6,($B7-$B6)*D6)","v":{"v":106000,"d":"106,000.00"}},12,{"$f":"IF(ISNUMBER(G6),G6+($B7-$B6)*F6,($B7-$B6)*F6)","v":{"v":21200,"d":"21,200.00"}},4,"4:{ref:'C2-5',staLine:1000,endLine:5000,basic:{staPrice:106000,rate:60},optional:{staPrice:21200,rate:12}}"]
["C2-6",{"v":5000,"d":"5,000"},"null",20,{"$f":"IF(ISNUMBER(E7),E7+($B8-$B7)*D7,($B8-$B7)*D7)","v":{"v":346000,"d":"346,000.00"}},4,{"$f":"IF(ISNUMBER(G7),G7+($B8-$B7)*F7,($B8-$B7)*F7)","v":{"v":69200,"d":"69,200.00"}},5,"5:{ref:'C2-6',staLine:5000,endLine:null,basic:{staPrice:346000,rate:20},optional:{staPrice:69200,rate:4}}"]
[{"$nulls":8},{"$f":"\"{\"&_xlfn.TEXTJOIN(\",\",TRUE,I3:I8)&\",}\"","v":"{0:{ref:'C2-1',staLine:0,endLine:50,basic:{staPrice:0,rate:200},optional:{staPrice:0,rate:40}},1:{ref:'C2-2',staLine:50,endLine:100,basic:{staPrice:10000,rate:160},optional:{staPrice:2000,rate:32}},2:{ref:'C2-3',staLine:100,endLine:500,basic:{staPrice:18000,rate:120},optional:{staPrice:3600,rate:24}},3:{ref:'C2-4',staLine:500,endLine:1000,basic:{staPrice:66000,rate:80},optional:{staPrice:13200,rate:16}},4:{ref:'C2-5',staLine:1000,endLine:5000,basic:{staPrice:106000,rate:60},optional:{staPrice:21200,rate:12}},5:{ref:'C2-6',staLine:5000,endLine:null,basic:{staPrice:346000,rate:20},optional:{staPrice:69200,rate:4}},}"}]

{"sheet":"附录C(信息咨询)","index":2,"n_rows":8,"n_cols":7,"rows_kept":8,"merged":[[0,1,0,2],[0,3,0,4],[1,1,1,2]]}
["预算编码","预算基数（C）",null,"基本工作基准预算（元）"]
[null,"条",null,"基准单价(元/条)","最大金额（元)"]
["C8-1",0,{"$f":"B4","v":10},500,{"v":0,"d":"0.00"},0,{"$f":"F3&\":{ref:'\"&A3&\"',staLine:\"&B3&\",endLine:\"&C3&\",staPrice:\"&E3&\",rate:\"&D3&\"}\"","v":"0:{ref:'C8-1',staLine:0,endLine:10,staPrice:0,rate:500}"}]
["C8-2",10,{"$f":"B5","v":30},400,{"$f":"IF(ISNUMBER(E2),E2+($B4-$B3)*D3,($B4-$B3)*D3)","v":{"v":5000,"d":"5,000.00"}},1,{"$f":"F4&\":{ref:'\"&A4&\"',staLine:\"&B4&\",endLine:\"&C4&\",staPrice:\"&E4&\",rate:\"&D4&\"}\"","v":"1:{ref:'C8-2',staLine:10,endLine:30,staPrice:5000,rate:400}"}]
["C8-3",30,{"$f":"B6","v":50},300,{"$f":"IF(ISNUMBER(E4),E4+($B5-$B4)*D4,($B5-$B4)*D4)","v":{"v":13000,"d":"13,000.00"}},2,{"$f":"F5&\":{ref:'\"&A5&\"',staLine:\"&B5&\",endLine:\"&C5&\",staPrice:\"&E5&\",rate:\"&D5&\"}\"","v":"2:{ref:'C8-3',staLine:30,endLine:50,staPrice:13000,rate:300}"}]
["C8-4",50,{"$f":"B7","v":100},200,{"$f":"IF(ISNUMBER(E5),E5+($B6-$B5)*D5,($B6-$B5)*D5)","v":{"v":19000,"d":"19,000.00"}},3,{"$f":"F6&\":{ref:'\"&A6&\"',staLine:\"&B6&\",endLine:\"&C6&\",staPrice:\"&E6&\",rate:\"&D6&\"}\"","v":"3:{ref:'C8-4',staLine:50,endLine:100,staPrice:19000,rate:200}"}]
["C8-5",100,"null",100,{"$f":"IF(ISNUMBER(E6),E6+($B7-$B6)*D6,($B7-$B6)*D6)","v":{"v":29000,"d":"29,000.00"}},4,{"$f":"F7&\":{ref:'\"&A7&\"',staLine:\"&B7&\",endLine:\"&C7&\",staPrice:\"&E7&\",rate:\"&D7&\"}\"","v":"4:{ref:'C8-5',staLine:100,endLine:null,staPrice:29000,rate:100}"}]
[{"$nulls":6},{"$f":"\"{\"&_xlfn.TEXTJOIN(\",\",TRUE,G3:G7)&\",}\"","v":"{0:{ref:'C8-1',staLine:0,endLine:10,staPrice:0,rate:500},1:{ref:'C8-2',staLine:10,endLine:30,staPrice:5000,rate:400},2:{ref:'C8-3',staLine:30,endLine:50,staPrice:13000,rate:300},3:{ref:'C8-4',staLine:50,endLine:100,staPrice:19000,rate:200},4:{ref:'C8-5',staLine:100,endLine:null,staPrice:29000,rate:100},}"}]

{"sheet":"附录C(非差额累进)","index":3,"n_rows":45,"n_cols":13,"rows_kept":45}
[15,"C4-1","工程造价日常顾问","服务月份数",null,true,0.3,0.5,0.4,"万元/月",10000,{"$f":"ROW()-1","v":0},{"$f":"L1&\":{serviceID:\"&A1&\",ref:'\"&B1&\"',name:'\"&C1&\"',basicParam:'\"&D1&\"',required:\"&F1&\",unit:'\"&J1&\"',conversion:\"&K1&\",maxPrice:\"&H1&\",minPrice:\"&G1&\",defPrice:\"&I1&\",desc:'\"&E1&\"'}\"","v":"0:{serviceID:15,ref:'C4-1',name:'工程造价日常顾问',basicParam:'服务月份数',required:TRUE,unit:'万元/月',conversion:10000,maxPrice:0.5,minPrice:0.3,defPrice:0.4,desc:''}"}]
[15,"C4-2","工程造价专项顾问","服务项目的造价金额","适用于涉及造价费用类的顾问",true,"null","null",0.01,"%",0.01,{"$f":"ROW()-1","v":1},{"$f":"L2&\":{serviceID:\"&A2&\",ref:'\"&B2&\"',name:'\"&C2&\"',basicParam:'\"&D2&\"',required:\"&F2&\",unit:'\"&J2&\"',conversion:\"&K2&\",maxPrice:\"&H2&\",minPrice:\"&G2&\",defPrice:\"&I2&\",desc:'\"&E2&\"'}\"","v":"1:{serviceID:15,ref:'C4-2',name:'工程造价专项顾问',basicParam:'服务项目的造价金额',required:TRUE,unit:'%',conversion:0.01,maxPrice:null,minPrice:null,defPrice:0.01,desc:'适用于涉及造价费用类的顾问'}"}]
[16,"C5-1","组织与调研工作","调研次数",null,true,1,2,{"$f":"AVERAGE(G3:H3)","v":1.5},"万元/次",10000,2,"2:{serviceID:16,ref:'C5-1',name:'组织与调研工作',basicParam:'调研次数',required:TRUE,unit:'万元/次',conversion:10000,maxPrice:2,minPrice:1,defPrice:1.5,desc:''}"]
[16,"C5-2-1","文件编写工作","文件份数","主编",true,3,5,4,"万元/份",10000,3,"3:{serviceID:16,ref:'C5-2-1',name:'文件编写工作',basicParam:'文件份数',required:TRUE,unit:'万元/份',conversion:10000,maxPrice:5,minPrice:3,defPrice:4,desc:'主编'}"]
[16,"C5-2-2","文件编写工作","文件份数","参编",true,1,3,2,"万元/份",10000,4,"4:{serviceID:16,ref:'C5-2-2',name:'文件编写工作',basicParam:'文件份数',required:TRUE,unit:'万元/份',conversion:10000,maxPrice:3,minPrice:1,defPrice:2,desc:'参编'}"]
[16,"C5-3-1","评审工作","评审次数","大型评审",false,8,20,14,"万元/次",10000,5,"5:{serviceID:16,ref:'C5-3-1',name:'评审工作',basicParam:'评审次数',required:FALSE,unit:'万元/次',conversion:10000,maxPrice:20,minPrice:8,defPrice:14,desc:'大型评审'}"]
[16,"C5-3-2","评审工作","评审次数","中型评审",false,5,10,7.5,"万元/次",10000,6,"6:{serviceID:16,ref:'C5-3-2',name:'评审工作',basicParam:'评审次数',required:FALSE,unit:'万元/次',conversion:10000,maxPrice:10,minPrice:5,defPrice:7.5,desc:'中型评审'}"]
[16,"C5-3-3","评审工作","评审次数","小型评审",false,3,6,4.5,"万元/次",10000,7,"7:{serviceID:16,ref:'C5-3-3',name:'评审工作',basicParam:'评审次数',required:FALSE,unit:'万元/次',conversion:10000,maxPrice:6,minPrice:3,defPrice:4.5,desc:'小型评审'}"]
[17,"C6-1","组织与调研工作","调研次数",null,true,1,2,1.5,"万元/次",10000,8,"8:{serviceID:17,ref:'C6-1',name:'组织与调研工作',basicParam:'调研次数',required:TRUE,unit:'万元/次',conversion:10000,maxPrice:2,minPrice:1,defPrice:1.5,desc:''}"]
[17,"C6-2-1","研究及编写报告","文件份数","国家级",true,20,50,35,"万元/份",10000,9,"9:{serviceID:17,ref:'C6-2-1',name:'研究及编写报告',basicParam:'文件份数',required:TRUE,unit:'万元/份',conversion:10000,maxPrice:50,minPrice:20,defPrice:35,desc:'国家级'}"]
[17,"C6-2-2","研究及编写报告","文件份数","省部级",true,10,20,15,"万元/份",10000,10,"10:{serviceID:17,ref:'C6-2-2',name:'研究及编写报告',basicParam:'文件份数',required:TRUE,unit:'万元/份',conversion:10000,maxPrice:20,minPrice:10,defPrice:15,desc:'省部级'}"]
[17,"C6-2-3","研究及编写报告","文件份数","其他级",true,5,10,7.5,"万元/份",10000,{"$f":"ROW()-1","v":11},"11:{serviceID:17,ref:'C6-2-3',name:'研究及编写报告',basicParam:'文件份数',required:TRUE,unit:'万元/份',conversion:10000,maxPrice:10,minPrice:5,defPrice:7.5,desc:'其他级'}"]
[17,"C6-3-1","标准与技术性指导文件的编制","文件与标准的数量","复杂标准",true,50,80,65,"万元/份",10000,12,"12:{serviceID:17,ref:'C6-3-1',name:'标准与技术性指导文件的编制',basicParam:'文件与标准的数量',required:TRUE,unit:'万元/份',conversion:10000,maxPrice:80,minPrice:50,defPrice:65,desc:'复杂标准'}"]
[17,"C6-3-2","标准与技术性指导文件的编制","文件与标准的数量","较复杂标准",true,20,50,35,"万元/份",10000,13,"13:{serviceID:17,ref:'C6-3-2',name:'标准与技术性指导文件的编制',basicParam:'文件与标准的数量',required:TRUE,unit:'万元/份',conversion:10000,maxPrice:50,minPrice:20,defPrice:35,desc:'较复杂标准'}"]
[17,"C6-3-3","标准与技术性指导文件的编制","文件与标准的数量","一般标准",true,10,20,15,"万元/份",10000,14,"14:{serviceID:17,ref:'C6-3-3',name:'标准与技术性指导文件的编制',basicParam:'文件与标准的数量',required:TRUE,unit:'万元/份',conversion:10000,maxPrice:20,minPrice:10,defPrice:15,desc:'一般标准'}"]
[17,"C6-3-4","标准与技术性指导文件的编制","文件与标准的数量","简单标准",true,5,10,7.5,"万元/份",10000,15,"15:{serviceID:17,ref:'C6-3-4',name:'标准与技术性指导文件的编制',basicParam:'文件与标准的数量',required:TRUE,unit:'万元/份',conversion:10000,maxPrice:10,minPrice:5,defPrice:7.5,desc:'简单标准'}"]
[17,"C6-4-1","评审与验收工作","评审与验收次数","大型评审",false,8,20,14,"万元/次",10000,16,"16:{serviceID:17,ref:'C6-4-1',name:'评审与验收工作',basicParam:'评审与验收次数',required:FALSE,unit:'万元/次',conversion:10000,maxPrice:20,minPrice:8,defPrice:14,desc:'大型评审'}"]
[17,"C6-4-2","评审与验收工作","评审与验收次数","中型评审",false,5,10,7.5,"万元/次",10000,17,"17:{serviceID:17,ref:'C6-4-2',name:'评审与验收工作',basicParam:'评审与验收次数',required:FALSE,unit:'万元/次',conversion:10000,maxPrice:10,minPrice:5,defPrice:7.5,desc:'中型评审'}"]
[17,"C6-4-3","评审与验收工作","评审与验收次数","小型评审",false,3,6,4.5,"万元/次",10000,18,"18:{serviceID:17,ref:'C6-4-3',name:'评审与验收工作',basicParam:'评审与验收次数',required:FALSE,unit:'万元/次',conversion:10000,maxPrice:6,minPrice:3,defPrice:4.5,desc:'小型评审'}"]
[17,"C6-5-1","培训与宣贯工作","项目数量","培训与宣贯材料",false,1,3,2,"万元/次",10000,19,"19:{serviceID:17,ref:'C6-5-1',name:'培训与宣贯工作',basicParam:'项目数量',required:FALSE,unit:'万元/次',conversion:10000,maxPrice:3,minPrice:1,defPrice:2,desc:'培训与宣贯材料'}"]
[17,"C6-5-2","培训与宣贯工作","培训与宣贯次数","组织培训与宣贯",false,0.5,1,0.75,"万元/次",10000,20,"20:{serviceID:17,ref:'C6-5-2',name:'培训与宣贯工作',basicParam:'培训与宣贯次数',required:FALSE,unit:'万元/次',conversion:10000,maxPrice:1,minPrice:0.5,defPrice:0.75,desc:'组织培训与宣贯'}"]
[18,"C7-1","组织与调研工作","调研次数",null,true,1,2,1.5,"万元/次",10000,{"$f":"ROW()-1","v":21},"21:{serviceID:18,ref:'C7-1',name:'组织与调研工作',basicParam:'调研次数',required:TRUE,unit:'万元/次',conversion:10000,maxPrice:2,minPrice:1,defPrice:1.5,desc:''}"]
[18,"C7-2","编制大纲","项目数量","包括技术与定额子目研究",true,2,3,2.5,"万元/个",10000,22,"22:{serviceID:18,ref:'C7-2',name:'编制大纲',basicParam:'项目数量',required:TRUE,unit:'万元/个',conversion:10000,maxPrice:3,minPrice:2,defPrice:2.5,desc:'包括技术与定额子目研究'}"]
[18,"C7-3","数据采集与测定","采集组数","现场采集方式时计",true,0.2,0.8,0.5,"万元/组",10000,23,"23:{serviceID:18,ref:'C7-3',name:'数据采集与测定',basicParam:'采集组数',required:TRUE,unit:'万元/组',conversion:10000,maxPrice:0.8,minPrice:0.2,defPrice:0.5,desc:'现场采集方式时计'}"]
[18,"C7-4-1","数据整理与分析","定额子目条数","简单定额",true,0.1,0.3,0.2,"万元/条",10000,24,"24:{serviceID:18,ref:'C7-4-1',name:'数据整理与分析',basicParam:'定额子目条数',required:TRUE,unit:'万元/条',conversion:10000,maxPrice:0.3,minPrice:0.1,defPrice:0.2,desc:'简单定额'}"]
[18,"C7-4-2","数据整理与分析","定额子目条数","复杂定额",true,0.3,3,1.65,"万元/条",10000,25,"25:{serviceID:18,ref:'C7-4-2',name:'数据整理与分析',basicParam:'定额子目条数',required:TRUE,unit:'万元/条',conversion:10000,maxPrice:3,minPrice:0.3,defPrice:1.65,desc:'复杂定额'}"]
[18,"C7-5","编写定额测定报告","项目数量",null,true,2,5,3.5,"万元/份",10000,26,"26:{serviceID:18,ref:'C7-5',name:'编写定额测定报告',basicParam:'项目数量',required:TRUE,unit:'万元/份',conversion:10000,maxPrice:5,minPrice:2,defPrice:3.5,desc:''}"]
[18,"C7-6-1","编制定额文本和释义","基本费用","20条定额子目内",true,0.5,1,0.75,"万元/份",10000,27,"27:{serviceID:18,ref:'C7-6-1',name:'编制定额文本和释义',basicParam:'基本费用',required:TRUE,unit:'万元/份',conversion:10000,maxPrice:1,minPrice:0.5,defPrice:0.75,desc:'20条定额子目内'}"]
[18,"C7-6-2","编制定额文本和释义","定额子目条数","超过20条每增加1条",true,0.1,0.2,0.15,"万元/条",10000,28,"28:{serviceID:18,ref:'C7-6-2',name:'编制定额文本和释义',basicParam:'定额子目条数',required:TRUE,unit:'万元/条',conversion:10000,maxPrice:0.2,minPrice:0.1,defPrice:0.15,desc:'超过20条每增加1条'}"]
[18,"C7-7-1","评审与验收工作","评审与验收次数","大型评审",false,8,20,14,"万元/次",10000,29,"29:{serviceID:18,ref:'C7-7-1',name:'评审与验收工作',basicParam:'评审与验收次数',required:FALSE,unit:'万元/次',conversion:10000,maxPrice:20,minPrice:8,defPrice:14,desc:'大型评审'}"]
[18,"C7-7-2","评审与验收工作","评审与验收次数","中型评审",false,5,10,7.5,"万元/次",10000,30,"30:{serviceID:18,ref:'C7-7-2',name:'评审与验收工作',basicParam:'评审与验收次数',required:FALSE,unit:'万元/次',conversion:10000,maxPrice:10,minPrice:5,defPrice:7.5,desc:'中型评审'}"]
[18,"C7-7-3","评审与验收工作","评审与验收次数","小型评审",false,3,6,4.5,"万元/次",10000,{"$f":"ROW()-1","v":31},"31:{serviceID:18,ref:'C7-7-3',name:'评审与验收工作',basicParam:'评审与验收次数',required:FALSE,unit:'万元/次',conversion:10000,maxPrice:6,minPrice:3,defPrice:4.5,desc:'小型评审'}"]
[18,"C7-8-1","培训与宣贯工作","项目数量","培训与宣贯材料",false,1,3,2,"万元/次",10000,32,"32:{serviceID:18,ref:'C7-8-1',name:'培训与宣贯工作',basicParam:'项目数量',required:FALSE,unit:'万元/次',conversion:10000,maxPrice:3,minPrice:1,defPrice:2,desc:'培训与宣贯材料'}"]
[18,"C7-8-2","培训与宣贯工作","培训与宣贯次数","组织培训与宣贯",false,0.5,1,0.75,"万元/次",10000,33,"33:{serviceID:18,ref:'C7-8-2',name:'培训与宣贯工作',basicParam:'培训与宣贯次数',required:FALSE,unit:'万元/次',conversion:10000,maxPrice:1,minPrice:0.5,defPrice:0.75,desc:'组织培训与宣贯'}"]
[19,"C8-1","Q≤10条","价格信息数量",null,true,"null","null",500,"元/条",1,34,"34:{serviceID:19,ref:'C8-1',name:'Q≤10条',basicParam:'价格信息数量',required:TRUE,unit:'元/条',conversion:1,maxPrice:null,minPrice:null,defPrice:500,desc:''}"]
[19,"C8-2","10条<Q≤30条","价格信息数量",null,true,"null","null",400,"元/条",1,35,"35:{serviceID:19,ref:'C8-2',name:'10条<Q≤30条',basicParam:'价格信息数量',required:TRUE,unit:'元/条',conversion:1,maxPrice:null,minPrice:null,defPrice:400,desc:''}"]
[19,"C8-3","30条<Q≤50条","价格信息数量",null,true,"null","null",300,"元/条",1,36,"36:{serviceID:19,ref:'C8-3',name:'30条<Q≤50条',basicParam:'价格信息数量',required:TRUE,unit:'元/条',conversion:1,maxPrice:null,minPrice:null,defPrice:300,desc:''}"]
[19,"C8-4","50条<Q≤100条","价格信息数量",null,true,"null","null",200,"元/条",1,37,"37:{serviceID:19,ref:'C8-4',name:'50条<Q≤100条',basicParam:'价格信息数量',required:TRUE,unit:'元/条',conversion:1,maxPrice:null,minPrice:null,defPrice:200,desc:''}"]
[19,"C8-5","Q>100条","价格信息数量",null,true,"null","null",100,"元/条",1,38,"38:{serviceID:19,ref:'C8-5',name:'Q>100条',basicParam:'价格信息数量',required:TRUE,unit:'元/条',conversion:1,maxPrice:null,minPrice:null,defPrice:100,desc:''}"]
[{"$nulls":12},{"$f":"\"{\"&_xlfn.TEXTJOIN(\",\",TRUE,M1:M39)&\",}\"","v":"{0:{serviceID:15,ref:'C4-1',name:'工程造价日常顾问',basicParam:'服务月份数',required:TRUE,unit:'万元/月',conversion:10000,maxPrice:0.5,minPrice:0.3,defPrice:0.4,desc:''},1:{serviceID:15,ref:'C4-2',name:'工程造价专项顾问',basicParam:'服务项目的造价金额',required:TRUE,unit:'%',conversion:0.01,maxPrice:null,minPrice:null,defPrice:0.01,desc:'适用于涉及造价费用类的顾问'},2:{serviceID:16,ref:'C5-1',name:'组织与调研工作',basicParam:'调研次数',required:TRUE,unit:'万元/次',conversion:10000,maxPrice:2,minPrice:1,defPrice:1.5,desc:''},3:{serviceID:16,ref:'C5-2-1',name:'文件编写工作',basicParam:'文件份数',required:TRUE,unit:'万元/份',conversion:10000,maxPrice:5,minPrice:3,defPrice:4,desc:'主编'},4:{serviceID:16,ref:'C5-2-2',name:'文件编写工作',basicParam:'文件份数',required:TRUE,unit:'万元/份',conversion:10000,maxPrice:3,minPrice:1,defPrice:2,desc:'参编'},5:{serviceID:16,ref:'C5-3-1',name:'评审工作',basicParam:'评审次数',required:FALSE,unit:'万元/次',conversion:10000,maxPrice:20,minPrice:8,defPrice:14,desc:'大型评审'},6:{serviceID:16,ref:'C5-3-2',name:'评审工作',basicParam:'评审次数',required:FALSE,unit:'万元/次',conversion:10000,maxPrice:10,minPrice:5,defPrice:7.5,desc:'中型评审'},7:{serviceID:16,ref:'C5-3-3',name:'评审工作',basicParam:'评审次数',required:FALSE,unit:'万元/次',conversion:10000,maxPrice:6,minPrice:3,defPrice:4.5,desc:'小型评审'},8:{serviceID:17,ref:'C6-1',name:'组织与调研工作',basicParam:'调研次数',required:TRUE,unit:'万元/次',conversion:10000,maxPrice:2,minPrice:1,defPrice:1.5,desc:''},9:{serviceID:17,ref:'C6-2-1',name:'研究及编写报告',basicParam:'文件份数',required:TRUE,unit:'万元/份',conversion:10000,maxPrice:50,minPrice:20,defPrice:35,desc:'国家级'},10:{serviceID:17,ref:'C6-2-2',name:'研究及编写报告',basicParam:'文件份数',required:TRUE,unit:'万元/份',conversion:10000,maxPrice:20,minPrice:10,defPrice:15,desc:'省部级'},11:{serviceID:17,ref:'C6-2-3',name:'研究及编写报告',basicParam:'文件份数',required:TRUE,unit:'万元/份',conversion:10000,maxPrice:10,minPrice:5,defPrice:7.5,desc:'其他级'},12:{serviceID:17,ref:'C6-3-1',name:'标准与技术性指导文件的编制',basicParam:'文件与标准的数量',required:TRUE,unit:'万元/份',conversion:10000,maxPrice:80,minPrice:50,defPrice:65,desc:'复杂标准'},13:{serviceID:17,ref:'C6-3-2',name:'标准与技术性指导文件的编制',basicParam:'文件与标准的数量',required:TRUE,unit:'万元/份',conversion:10000,maxPrice:50,minPrice:20,defPrice:35,desc:'较复杂标准'},14:{serviceID:17,ref:'C6-3-3',name:'标准与技术性指导文件的编制',basicParam:'文件与标准的数量',required:TRUE,unit:'万元/份',conversion:10000,maxPrice:20,minPrice:10,defPrice:15,desc:'一般标准'},15:{serviceID:17,ref:'C6-3-4',name:'标准与技术性指导文件的编制',basicParam:'文件与标准的数量',required:TRUE,unit:'万元/份',conversion:10000,maxPrice:10,minPrice:5,defPrice:7.5,desc:'简单标准'},16:{serviceID:17,ref:'C6-4-1',name:'评审与验收工作',basicParam:'评审与验收次数',required:FALSE,unit:'万元/次',conversion:10000,maxPrice:20,minPrice:8,defPrice:14,desc:'大型评审'},17:{serviceID:17,ref:'C6-4-2',name:'评审与验收工作',basicParam:'评审与验收次数',required:FALSE,unit:'万元/次',conversion:10000,maxPrice:10,minPrice:5,defPrice:7.5,desc:'中型评审'},18:{serviceID:17,ref:'C6-4-3',name:'评审与验收工作',basicParam:'评审与验收次数',required:FALSE,unit:'万元/次',conversion:10000,maxPrice:6,minPrice:3,defPrice:4.5,desc:'小型评审'},19:{serviceID:17,ref:'C6-5-1',name:'培训与宣贯工作',basicParam:'项目数量',required:FALSE,unit:'万元/次',conversion:10000,maxPrice:3,minPrice:1,defPrice:2,desc:'培训与宣贯材料'},20:{serviceID:17,ref:'C6-5-2',name:'培训与宣贯工作',basicParam:'培训与宣贯次数',required:FALSE,unit:'万元/次',conversion:10000,maxPrice:1,minPrice:0.5,defPrice:0.75,desc:'组织培训与宣贯'},21:{serviceID:18,ref:'C7-1',name:'组织与调研工作',basicParam:'调研次数',required:TRUE,unit:'万元/次',conversion:10000,maxPrice:2,minPrice:1,defPrice:1.5,desc:''},22:{serviceID:18,ref:'C7-2',name:'编制大纲',basicParam:'项目数量',required:TRUE,unit:'万元/个',conversion:10000,maxPrice:3,minPrice:2,defPrice:2.5,desc:'包括技术与定额子目研究'},23:{serviceID:18,ref:'C7-3',name:'数据采集与测定',basicParam:'采集组数',required:TRUE,unit:'万元/组',conversion:10000,maxPrice:0.8,minPrice:0.2,defPrice:0.5,desc:'现场采集方式时计'},24:{serviceID:18,ref:'C7-4-1',name:'数据整理与分析',basicParam:'定额子目条数',required:TRUE,unit:'万元/条',conversion:10000,maxPrice:0.3,minPrice:0.1,defPrice:0.2,desc:'简单定额'},25:{serviceID:18,ref:'C7-4-2',name:'数据整理与分析',basicParam:'定额子目条数',required:TRUE,unit:'万元/条',conversion:10000,maxPrice:3,minPrice:0.3,defPrice:1.65,desc:'复杂定额'},26:{serviceID:18,ref:'C7-5',name:'编写定额测定报告',basicParam:'项目数量',required:TRUE,unit:'万元/份',conversion:10000,maxPrice:5,minPrice:2,defPrice:3.5,desc:''},27:{serviceID:18,ref:'C7-6-1',name:'编制定额文本和释义',basicParam:'基本费用',required:TRUE,unit:'万元/份',conversion:10000,maxPrice:1,minPrice:0.5,defPrice:0.75,desc:'20条定额子目内'},28:{serviceID:18,ref:'C7-6-2',name:'编制定额文本和释义',basicParam:'定额子目条数',required:TRUE,unit:'万元/条',conversion:10000,maxPrice:0.2,minPrice:0.1,defPrice:0.15,desc:'超过20条每增加1条'},29:{serviceID:18,ref:'C7-7-1',name:'评审与验收工作',basicParam:'评审与验收次数',required:FALSE,unit:'万元/次',conversion:10000,maxPrice:20,minPrice:8,defPrice:14,desc:'大型评审'},30:{serviceID:18,ref:'C7-7-2',name:'评审与验收工作',basicParam:'评审与验收次数',required:FALSE,unit:'万元/次',conversion:10000,maxPrice:10,minPrice:5,defPrice:7.5,desc:'中型评审'},31:{serviceID:18,ref:'C7-7-3',name:'评审与验收工作',basicParam:'评审与验收次数',required:FALSE,unit:'万元/次',conversion:10000,maxPrice:6,minPrice:3,defPrice:4.5,desc:'小型评审'},32:{serviceID:18,ref:'C7-8-1',name:'培训与宣贯工作',basicParam:'项目数量',required:FALSE,unit:'万元/次',conversion:10000,maxPrice:3,minPrice:1,defPrice:2,desc:'培训与宣贯材料'},33:{serviceID:18,ref:'C7-8-2',name:'培训与宣贯工作',basicParam:'培训与宣贯次数',required:FALSE,unit:'万元/次',conversion:10000,maxPrice:1,minPrice:0.5,defPrice:0.75,desc:'组织培训与宣贯'},34:{serviceID:19,ref:'C8-1',name:'Q≤10条',basicParam:'价格信息数量',required:TRUE,unit:'元/条',conversion:1,maxPrice:null,minPrice:null,defPrice:500,desc:''},35:{serviceID:19,ref:'C8-2',name:'10条<Q≤30条',basicParam:'价格信息数量',required:TRUE,unit:'元/条',conversion:1,maxPrice:null,minPrice:null,defPrice:400,desc:''},36:{serviceID:19,ref:'C8-3',name:'30条<Q≤50条',basicParam:'价格信息数量',required:TRUE,unit:'元/条',conversion:1,maxPrice:null,minPrice:null,defPrice:300,desc:''},37:{serviceID:19,ref:'C8-4',name:'50条<Q≤100条',basicParam:'价格信息数量',required:TRUE,unit:'元/条',conversion:1,maxPrice:null,minPrice:null,defPrice:200,desc:''},38:{serviceID:19,ref:'C8-5',name:'Q>100条',basicParam:'价格信息数量',required:TRUE,unit:'元/条',conversion:1,maxPrice:null,minPrice:null,defPrice:100,desc:''},}"}]
[15,null,{"$f":"_xlfn.TEXTJOIN(\",\",TRUE,IF($A$1:$A$39=A41,$L$1:$L$39,\"\"))","v":"0,1"}]
[16,null,{"$f":"_xlfn.TEXTJOIN(\",\",TRUE,IF($A$1:$A$39=A42,$L$1:$L$39,\"\"))","v":"2,3,4,5,6,7"}]
[17,null,{"$f":"_xlfn.TEXTJOIN(\",\",TRUE,IF($A$1:$A$39=A43,$L$1:$L$39,\"\"))","v":"8,9,10,11,12,13,14,15,16,17,18,19,20"}]
[18,null,{"$f":"_xlfn.TEXTJOIN(\",\",TRUE,IF($A$1:$A$39=A44,$L$1:$L$39,\"\"))","v":"21,22,23,24,25,26,27,28,29,30,31,32,33"}]
[19,null,{"$f":"_xlfn.TEXTJOIN(\",\",TRUE,IF($A$1:$A$39=A45,$L$1:$L$39,\"\"))","v":"34,35,36,37,38"}]

{"sheet":"附录C(工日单价)","index":4,"n_rows":9,"n_cols":8,"rows_kept":9}
["C9-1-1","技术员及其他",600,800,{"$f":"AVERAGE(C1:D1)","v":700},2.3,0,{"$f":"G1&\":{ref:'\"&A1&\"',name:'\"&B1&\"',maxPrice:\"&D1&\",minPrice:\"&C1&\",defPrice:\"&E1&\",manageCoe:\"&F1&\"}\"","v":"0:{ref:'C9-1-1',name:'技术员及其他',maxPrice:800,minPrice:600,defPrice:700,manageCoe:2.3}"}]
["C9-1-2","助理工程师",800,1000,{"$f":"AVERAGE(C2:D2)","v":900},2.3,1,{"$f":"G2&\":{ref:'\"&A2&\"',name:'\"&B2&\"',maxPrice:\"&D2&\",minPrice:\"&C2&\",defPrice:\"&E2&\",manageCoe:\"&F2&\"}\"","v":"1:{ref:'C9-1-2',name:'助理工程师',maxPrice:1000,minPrice:800,defPrice:900,manageCoe:2.3}"}]
["C9-1-3","中级工程师或二级造价工程师",1000,1500,1250,2.2,2,"2:{ref:'C9-1-3',name:'中级工程师或二级造价工程师',maxPrice:1500,minPrice:1000,defPrice:1250,manageCoe:2.2}"]
["C9-1-4","高级工程师或一级造价工程师",1500,1800,1650,2.1,3,"3:{ref:'C9-1-4',name:'高级工程师或一级造价工程师',maxPrice:1800,minPrice:1500,defPrice:1650,manageCoe:2.1}"]
["C9-1-5","正高级工程师或资深专家",2000,2500,2250,2,4,"4:{ref:'C9-1-5',name:'正高级工程师或资深专家',maxPrice:2500,minPrice:2000,defPrice:2250,manageCoe:2}"]
["C9-2-1","二级造价工程师且具备中级工程师资格",1200,1500,1350,2.2,5,"5:{ref:'C9-2-1',name:'二级造价工程师且具备中级工程师资格',maxPrice:1500,minPrice:1200,defPrice:1350,manageCoe:2.2}"]
["C9-3-1","一级造价工程师且具备中级工程师资格",1500,1800,1650,2.1,6,"6:{ref:'C9-3-1',name:'一级造价工程师且具备中级工程师资格',maxPrice:1800,minPrice:1500,defPrice:1650,manageCoe:2.1}"]
["C9-3-2","一级造价工程师且具备高级工程师资格",1800,2000,1900,2.05,7,"7:{ref:'C9-3-2',name:'一级造价工程师且具备高级工程师资格',maxPrice:2000,minPrice:1800,defPrice:1900,manageCoe:2.05}"]
[{"$nulls":7},{"$f":"\"{\"&_xlfn.TEXTJOIN(\",\",TRUE,H1:H8)&\",}\"","v":"{0:{ref:'C9-1-1',name:'技术员及其他',maxPrice:800,minPrice:600,defPrice:700,manageCoe:2.3},1:{ref:'C9-1-2',name:'助理工程师',maxPrice:1000,minPrice:800,defPrice:900,manageCoe:2.3},2:{ref:'C9-1-3',name:'中级工程师或二级造价工程师',maxPrice:1500,minPrice:1000,defPrice:1250,manageCoe:2.2},3:{ref:'C9-1-4',name:'高级工程师或一级造价工程师',maxPrice:1800,minPrice:1500,defPrice:1650,manageCoe:2.1},4:{ref:'C9-1-5',name:'正高级工程师或资深专家',maxPrice:2500,minPrice:2000,defPrice:2250,manageCoe:2},5:{ref:'C9-2-1',name:'二级造价工程师且具备中级工程师资格',maxPrice:1500,minPrice:1200,defPrice:1350,manageCoe:2.2},6:{ref:'C9-3-1',name:'一级造价工程师且具备中级工程师资格',maxPrice:1800,minPrice:1500,defPrice:1650,manageCoe:2.1},7:{ref:'C9-3-2',name:'一级造价工程师且具备高级工程师资格',maxPrice:2000,minPrice:1800,defPrice:1900,manageCoe:2.05},}"}]

{"sheet":"附录D","index":5,"n_rows":39,"n_cols":17,"rows_kept":39}
[{"$nulls":6},"id","order","scale","onlyCostScale","amount","workDay","isRoad","isRailway","isWaterway","mutiple"]
["D1","全过程造价咨询","null","null",1,null,{"$f":"ROW()-2","v":0},{"$f":"ROW()-1","v":1},true,true,false,true,true,true,true,false,{"$f":"G2&\":{ref:'\"&A2&\"',name:'\"&B2&\"',maxCoe:\"&D2&\",minCoe:\"&C2&\",defCoe:\"&E2&\",desc:'\"&F2&\"',isRoad:\"&M2&\",isRailway:\"&N2&\",isWaterway:\"&O2&\",mutiple:\"&P2&\",order:\"&H2&\",scale:\"&I2&\",onlyCostScale:\"&J2&\",amount:\"&K2&\",workDay:\"&L2&\"}\"","v":"0:{ref:'D1',name:'全过程造价咨询',maxCoe:null,minCoe:null,defCoe:1,desc:'',isRoad:TRUE,isRailway:TRUE,isWaterway:TRUE,mutiple:FALSE,order:1,scale:TRUE,onlyCostScale:TRUE,amount:FALSE,workDay:TRUE}"}]
["D2","分阶段造价咨询","null","null","null",null,{"$f":"ROW()-2","v":1},{"$f":"ROW()-1","v":2},"null","null","null","null",true,true,true,false,"1:{ref:'D2',name:'分阶段造价咨询',maxCoe:null,minCoe:null,defCoe:null,desc:'',isRoad:TRUE,isRailway:TRUE,isWaterway:TRUE,mutiple:FALSE,order:2,scale:null,onlyCostScale:null,amount:null,workDay:null}"]
["D2-1","前期阶段造价咨询","null","null",0.5,null,2,3,true,true,false,true,true,true,true,false,"2:{ref:'D2-1',name:'前期阶段造价咨询',maxCoe:null,minCoe:null,defCoe:0.5,desc:'',isRoad:TRUE,isRailway:TRUE,isWaterway:TRUE,mutiple:FALSE,order:3,scale:TRUE,onlyCostScale:TRUE,amount:FALSE,workDay:TRUE}"]
["D2-2-1","实施阶段造价咨询（公路、水运）","null","null",0.55,"本系数适用于公路和水运工程。",3,4,true,true,false,true,true,false,true,false,"3:{ref:'D2-2-1',name:'实施阶段造价咨询（公路、水运）',maxCoe:null,minCoe:null,defCoe:0.55,desc:'本系数适用于公路和水运工程。',isRoad:TRUE,isRailway:FALSE,isWaterway:TRUE,mutiple:FALSE,order:4,scale:TRUE,onlyCostScale:TRUE,amount:FALSE,workDay:TRUE}"]
["D2-2-2","实施阶段造价咨询（铁路）","null","null",0.6,"本系数适用于铁路工程。",4,5,true,true,false,true,false,true,false,false,"4:{ref:'D2-2-2',name:'实施阶段造价咨询（铁路）',maxCoe:null,minCoe:null,defCoe:0.6,desc:'本系数适用于铁路工程。',isRoad:FALSE,isRailway:TRUE,isWaterway:FALSE,mutiple:FALSE,order:5,scale:TRUE,onlyCostScale:TRUE,amount:FALSE,workDay:TRUE}"]
["D3","基本造价咨询","null","null","null",null,5,6,"null","null","null","null",true,true,true,false,"5:{ref:'D3',name:'基本造价咨询',maxCoe:null,minCoe:null,defCoe:null,desc:'',isRoad:TRUE,isRailway:TRUE,isWaterway:TRUE,mutiple:FALSE,order:6,scale:null,onlyCostScale:null,amount:null,workDay:null}"]
["D3-1","投资估算","null","null",0.1,"委托同一咨询人同时负责D3-1和D3-2时，D3-1和D3-2的合计调整系数为0.25。",6,7,true,true,false,true,true,true,true,false,"6:{ref:'D3-1',name:'投资估算',maxCoe:null,minCoe:null,defCoe:0.1,desc:'委托同一咨询人同时负责D3-1和D3-2时，D3-1和D3-2的合计调整系数为0.25。',isRoad:TRUE,isRailway:TRUE,isWaterway:TRUE,mutiple:FALSE,order:7,scale:TRUE,onlyCostScale:TRUE,amount:FALSE,workDay:TRUE}"]
["D3-2","设计概算","null","null",0.2,null,7,8,true,true,false,true,true,true,true,false,"7:{ref:'D3-2',name:'设计概算',maxCoe:null,minCoe:null,defCoe:0.2,desc:'',isRoad:TRUE,isRailway:TRUE,isWaterway:TRUE,mutiple:FALSE,order:8,scale:TRUE,onlyCostScale:TRUE,amount:FALSE,workDay:TRUE}"]
["D3-3","施工图预算","null","null",0.25,"委托同一咨询人同时负责D3-3和D3-4时，D3-3和D3-4的合计调整系数为0.3。",8,9,true,false,false,true,true,true,true,false,"8:{ref:'D3-3',name:'施工图预算',maxCoe:null,minCoe:null,defCoe:0.25,desc:'委托同一咨询人同时负责D3-3和D3-4时，D3-3和D3-4的合计调整系数为0.3。',isRoad:TRUE,isRailway:TRUE,isWaterway:TRUE,mutiple:FALSE,order:9,scale:TRUE,onlyCostScale:FALSE,amount:FALSE,workDay:TRUE}"]
["D3-4","招标工程量清单及清单预算（或最高投标限价）","null","null",0.15,null,9,10,true,false,false,true,true,true,true,false,"9:{ref:'D3-4',name:'招标工程量清单及清单预算（或最高投标限价）',maxCoe:null,minCoe:null,defCoe:0.15,desc:'',isRoad:TRUE,isRailway:TRUE,isWaterway:TRUE,mutiple:FALSE,order:10,scale:TRUE,onlyCostScale:FALSE,amount:FALSE,workDay:TRUE}"]
["D3-5","清理概算（仅限铁路）","null","null",0.2,"本系数适用于铁路工程。",10,11,true,true,false,true,false,true,false,false,"10:{ref:'D3-5',name:'清理概算（仅限铁路）',maxCoe:null,minCoe:null,defCoe:0.2,desc:'本系数适用于铁路工程。',isRoad:FALSE,isRailway:TRUE,isWaterway:FALSE,mutiple:FALSE,order:11,scale:TRUE,onlyCostScale:TRUE,amount:FALSE,workDay:TRUE}"]
["D3-6-1","合同（工程）结算","null","null",0.3,"本系数适用于公路和水运工程。",{"$f":"ROW()-2","v":11},{"$f":"ROW()-1","v":12},true,false,false,true,true,false,true,false,"11:{ref:'D3-6-1',name:'合同（工程）结算',maxCoe:null,minCoe:null,defCoe:0.3,desc:'本系数适用于公路和水运工程。',isRoad:TRUE,isRailway:FALSE,isWaterway:TRUE,mutiple:FALSE,order:12,scale:TRUE,onlyCostScale:FALSE,amount:FALSE,workDay:TRUE}"]
["D3-6-2","合同（工程）结算","null","null",0.2,"本系数适用于铁路工程。",12,13,true,false,false,true,false,true,false,false,"12:{ref:'D3-6-2',name:'合同（工程）结算',maxCoe:null,minCoe:null,defCoe:0.2,desc:'本系数适用于铁路工程。',isRoad:FALSE,isRailway:TRUE,isWaterway:FALSE,mutiple:FALSE,order:13,scale:TRUE,onlyCostScale:FALSE,amount:FALSE,workDay:TRUE}"]
["D3-7","竣工决算","null","null",0.1,null,13,14,true,true,false,true,true,true,true,false,"13:{ref:'D3-7',name:'竣工决算',maxCoe:null,minCoe:null,defCoe:0.1,desc:'',isRoad:TRUE,isRailway:TRUE,isWaterway:TRUE,mutiple:FALSE,order:14,scale:TRUE,onlyCostScale:TRUE,amount:FALSE,workDay:TRUE}"]
["D4","专项造价咨询","null","null","null",null,14,15,"null","null","null","null",true,true,true,false,"14:{ref:'D4',name:'专项造价咨询',maxCoe:null,minCoe:null,defCoe:null,desc:'',isRoad:TRUE,isRailway:TRUE,isWaterway:TRUE,mutiple:FALSE,order:15,scale:null,onlyCostScale:null,amount:null,workDay:null}"]
["D4-1","工程造价顾问","null","null",1,"本表系数适用于采用工作量计价法基准预算的调整系数。",15,16,false,"null",true,true,true,true,true,false,"15:{ref:'D4-1',name:'工程造价顾问',maxCoe:null,minCoe:null,defCoe:1,desc:'本表系数适用于采用工作量计价法基准预算的调整系数。',isRoad:TRUE,isRailway:TRUE,isWaterway:TRUE,mutiple:FALSE,order:16,scale:FALSE,onlyCostScale:null,amount:TRUE,workDay:TRUE}"]
["D4-2","造价政策制（修）订","null","null",1,null,16,17,false,"null",true,true,true,true,true,false,"16:{ref:'D4-2',name:'造价政策制（修）订',maxCoe:null,minCoe:null,defCoe:1,desc:'',isRoad:TRUE,isRailway:TRUE,isWaterway:TRUE,mutiple:FALSE,order:17,scale:FALSE,onlyCostScale:null,amount:TRUE,workDay:TRUE}"]
["D4-3","造价科学与技术研究","null","null",1,null,17,18,false,"null",true,true,true,true,true,false,"17:{ref:'D4-3',name:'造价科学与技术研究',maxCoe:null,minCoe:null,defCoe:1,desc:'',isRoad:TRUE,isRailway:TRUE,isWaterway:TRUE,mutiple:FALSE,order:18,scale:FALSE,onlyCostScale:null,amount:TRUE,workDay:TRUE}"]
["D4-4","定额测定","null","null",1,null,18,19,false,"null",true,true,true,true,true,false,"18:{ref:'D4-4',name:'定额测定',maxCoe:null,minCoe:null,defCoe:1,desc:'',isRoad:TRUE,isRailway:TRUE,isWaterway:TRUE,mutiple:FALSE,order:19,scale:FALSE,onlyCostScale:null,amount:TRUE,workDay:TRUE}"]
["D4-5","造价信息咨询","null","null",1,null,19,20,false,"null",true,true,true,true,true,false,{"$f":"G21&\":{ref:'\"&A21&\"',name:'\"&B21&\"',maxCoe:\"&D21&\",minCoe:\"&C21&\",defCoe:\"&E21&\",desc:'\"&F21&\"',isRoad:\"&M21&\",isRailway:\"&N21&\",isWaterway:\"&O21&\",mutiple:\"&P21&\",order:\"&H21&\",scale:\"&I21&\",onlyCostScale:\"&J21&\",amount:\"&K21&\",workDay:\"&L21&\"}\"","v":"19:{ref:'D4-5',name:'造价信息咨询',maxCoe:null,minCoe:null,defCoe:1,desc:'',isRoad:TRUE,isRailway:TRUE,isWaterway:TRUE,mutiple:FALSE,order:20,scale:FALSE,onlyCostScale:null,amount:TRUE,workDay:TRUE}"}]
["D4-6","造价鉴定","null","null",0.5,"本表系数适用于采用规模计价法基准预算的调整系数。",20,21,true,false,false,true,true,true,true,false,"20:{ref:'D4-6',name:'造价鉴定',maxCoe:null,minCoe:null,defCoe:0.5,desc:'本表系数适用于采用规模计价法基准预算的调整系数。',isRoad:TRUE,isRailway:TRUE,isWaterway:TRUE,mutiple:FALSE,order:21,scale:TRUE,onlyCostScale:FALSE,amount:FALSE,workDay:TRUE}"]
["D4-7","工程成本测算","null","null",0.1,null,{"$f":"ROW()-2","v":21},{"$f":"ROW()-1","v":22},true,false,false,true,true,true,true,false,"21:{ref:'D4-7',name:'工程成本测算',maxCoe:null,minCoe:null,defCoe:0.1,desc:'',isRoad:TRUE,isRailway:TRUE,isWaterway:TRUE,mutiple:FALSE,order:22,scale:TRUE,onlyCostScale:FALSE,amount:FALSE,workDay:TRUE}"]
["D4-8","工程成本核算","null","null",0.1,null,22,23,true,false,false,true,true,true,true,false,"22:{ref:'D4-8',name:'工程成本核算',maxCoe:null,minCoe:null,defCoe:0.1,desc:'',isRoad:TRUE,isRailway:TRUE,isWaterway:TRUE,mutiple:FALSE,order:23,scale:TRUE,onlyCostScale:FALSE,amount:FALSE,workDay:TRUE}"]
["D4-9","计算工程量","null","null",0.2,null,23,24,true,false,false,true,true,true,true,false,"23:{ref:'D4-9',name:'计算工程量',maxCoe:null,minCoe:null,defCoe:0.2,desc:'',isRoad:TRUE,isRailway:TRUE,isWaterway:TRUE,mutiple:FALSE,order:24,scale:TRUE,onlyCostScale:FALSE,amount:FALSE,workDay:TRUE}"]
["D4-10","工程变更费用咨询","null","null",0.5,null,24,25,true,false,false,true,true,true,true,false,"24:{ref:'D4-10',name:'工程变更费用咨询',maxCoe:null,minCoe:null,defCoe:0.5,desc:'',isRoad:TRUE,isRailway:TRUE,isWaterway:TRUE,mutiple:FALSE,order:25,scale:TRUE,onlyCostScale:FALSE,amount:FALSE,workDay:TRUE}"]
["D4-11","调整估算",0.1,0.2,0.15,null,25,26,true,true,false,true,true,true,true,false,"25:{ref:'D4-11',name:'调整估算',maxCoe:0.2,minCoe:0.1,defCoe:0.15,desc:'',isRoad:TRUE,isRailway:TRUE,isWaterway:TRUE,mutiple:FALSE,order:26,scale:TRUE,onlyCostScale:TRUE,amount:FALSE,workDay:TRUE}"]
["D4-12","调整概算",0.15,0.3,0.225,"本表系数适用于采用规模计价法基准预算的系数；依据其调整时期所在建设阶段和基础资料的不同，其系数取值不同。",26,27,true,true,false,true,true,true,true,false,"26:{ref:'D4-12',name:'调整概算',maxCoe:0.3,minCoe:0.15,defCoe:0.225,desc:'本表系数适用于采用规模计价法基准预算的系数；依据其调整时期所在建设阶段和基础资料的不同，其系数取值不同。',isRoad:TRUE,isRailway:TRUE,isWaterway:TRUE,mutiple:FALSE,order:27,scale:TRUE,onlyCostScale:TRUE,amount:FALSE,workDay:TRUE}"]
["D4-13","造价检查","null","null","null","可按照服务工日数量×服务工日人工单价×综合预算系数；也可按照服务工日数量×服务工日综合预算单价。",27,28,false,"null",false,true,true,true,true,false,"27:{ref:'D4-13',name:'造价检查',maxCoe:null,minCoe:null,defCoe:null,desc:'可按照服务工日数量×服务工日人工单价×综合预算系数；也可按照服务工日数量×服务工日综合预算单价。',isRoad:TRUE,isRailway:TRUE,isWaterway:TRUE,mutiple:FALSE,order:28,scale:FALSE,onlyCostScale:null,amount:FALSE,workDay:TRUE}"]
["D4-14","其他专项咨询","null","null","null","可参照相同或相似服务的系数。",28,29,false,"null",false,true,true,true,true,false,"28:{ref:'D4-14',name:'其他专项咨询',maxCoe:null,minCoe:null,defCoe:null,desc:'可参照相同或相似服务的系数。',isRoad:TRUE,isRailway:TRUE,isWaterway:TRUE,mutiple:FALSE,order:29,scale:FALSE,onlyCostScale:null,amount:FALSE,workDay:TRUE}"]
["D4-15-1","造价数据测试验证(估算)","null","null",0.04,"委托同一咨询人同时负责D3-1和D3-2时，D3-1和D3-2的合计调整系数为0.25。",29,30,true,true,false,true,true,true,true,true,"29:{ref:'D4-15-1',name:'造价数据测试验证(估算)',maxCoe:null,minCoe:null,defCoe:0.04,desc:'委托同一咨询人同时负责D3-1和D3-2时，D3-1和D3-2的合计调整系数为0.25。',isRoad:TRUE,isRailway:TRUE,isWaterway:TRUE,mutiple:TRUE,order:30,scale:TRUE,onlyCostScale:TRUE,amount:FALSE,workDay:TRUE}"]
["D4-15-2","造价数据测试验证(概算)","null","null",0.08,null,30,31,true,true,false,true,true,true,true,true,"30:{ref:'D4-15-2',name:'造价数据测试验证(概算)',maxCoe:null,minCoe:null,defCoe:0.08,desc:'',isRoad:TRUE,isRailway:TRUE,isWaterway:TRUE,mutiple:TRUE,order:31,scale:TRUE,onlyCostScale:TRUE,amount:FALSE,workDay:TRUE}"]
["D4-15-3","造价数据测试验证(施工图预算)","null","null",0.1,"委托同一咨询人同时负责D3-3和D3-4时，D3-3和D3-4的合计调整系数为0.3。",{"$f":"ROW()-2","v":31},{"$f":"ROW()-1","v":32},true,false,false,true,true,true,true,true,"31:{ref:'D4-15-3',name:'造价数据测试验证(施工图预算)',maxCoe:null,minCoe:null,defCoe:0.1,desc:'委托同一咨询人同时负责D3-3和D3-4时，D3-3和D3-4的合计调整系数为0.3。',isRoad:TRUE,isRailway:TRUE,isWaterway:TRUE,mutiple:TRUE,order:32,scale:TRUE,onlyCostScale:FALSE,amount:FALSE,workDay:TRUE}"]
["D4-15-4","造价数据测试验证(招标工程量清单及清单预算（或最高投标限价）)","null","null",0.06,null,32,33,true,false,false,true,true,true,true,true,"32:{ref:'D4-15-4',name:'造价数据测试验证(招标工程量清单及清单预算（或最高投标限价）)',maxCoe:null,minCoe:null,defCoe:0.06,desc:'',isRoad:TRUE,isRailway:TRUE,isWaterway:TRUE,mutiple:TRUE,order:33,scale:TRUE,onlyCostScale:FALSE,amount:FALSE,workDay:TRUE}"]
["D4-15-5","造价数据测试验证(清理概算（仅限铁路）)","null","null",0.08,"本系数适用于铁路工程。",33,34,true,true,false,true,false,true,false,true,"33:{ref:'D4-15-5',name:'造价数据测试验证(清理概算（仅限铁路）)',maxCoe:null,minCoe:null,defCoe:0.08,desc:'本系数适用于铁路工程。',isRoad:FALSE,isRailway:TRUE,isWaterway:FALSE,mutiple:TRUE,order:34,scale:TRUE,onlyCostScale:TRUE,amount:FALSE,workDay:TRUE}"]
["D4-15-6","造价数据测试验证(合同（工程）结算)","null","null",0.12,"本系数适用于公路和水运工程。",34,35,true,false,false,true,true,false,true,true,"34:{ref:'D4-15-6',name:'造价数据测试验证(合同（工程）结算)',maxCoe:null,minCoe:null,defCoe:0.12,desc:'本系数适用于公路和水运工程。',isRoad:TRUE,isRailway:FALSE,isWaterway:TRUE,mutiple:TRUE,order:35,scale:TRUE,onlyCostScale:FALSE,amount:FALSE,workDay:TRUE}"]
["D4-15-7","造价数据测试验证(合同（工程）结算)","null","null",0.08,"本系数适用于铁路工程。",35,36,true,false,false,true,false,true,false,true,"35:{ref:'D4-15-7',name:'造价数据测试验证(合同（工程）结算)',maxCoe:null,minCoe:null,defCoe:0.08,desc:'本系数适用于铁路工程。',isRoad:FALSE,isRailway:TRUE,isWaterway:FALSE,mutiple:TRUE,order:36,scale:TRUE,onlyCostScale:FALSE,amount:FALSE,workDay:TRUE}"]
["D4-15-8","造价数据测试验证(竣工决算)","null","null",0.04,null,36,37,true,true,false,true,true,true,true,true,"36:{ref:'D4-15-8',name:'造价数据测试验证(竣工决算)',maxCoe:null,minCoe:null,defCoe:0.04,desc:'',isRoad:TRUE,isRailway:TRUE,isWaterway:TRUE,mutiple:TRUE,order:37,scale:TRUE,onlyCostScale:TRUE,amount:FALSE,workDay:TRUE}"]
[{"$nulls":16},{"$f":"\"{\"&_xlfn.TEXTJOIN(\",\",TRUE,Q2:Q38)&\",}\"","v":"{0:{ref:'D1',name:'全过程造价咨询',maxCoe:null,minCoe:null,defCoe:1,desc:'',isRoad:TRUE,isRailway:TRUE,isWaterway:TRUE,mutiple:FALSE,order:1,scale:TRUE,onlyCostScale:TRUE,amount:FALSE,workDay:TRUE},1:{ref:'D2',name:'分阶段造价咨询',maxCoe:null,minCoe:null,defCoe:null,desc:'',isRoad:TRUE,isRailway:TRUE,isWaterway:TRUE,mutiple:FALSE,order:2,scale:null,onlyCostScale:null,amount:null,workDay:null},2:{ref:'D2-1',name:'前期阶段造价咨询',maxCoe:null,minCoe:null,defCoe:0.5,desc:'',isRoad:TRUE,isRailway:TRUE,isWaterway:TRUE,mutiple:FALSE,order:3,scale:TRUE,onlyCostScale:TRUE,amount:FALSE,workDay:TRUE},3:{ref:'D2-2-1',name:'实施阶段造价咨询（公路、水运）',maxCoe:null,minCoe:null,defCoe:0.55,desc:'本系数适用于公路和水运工程。',isRoad:TRUE,isRailway:FALSE,isWaterway:TRUE,mutiple:FALSE,order:4,scale:TRUE,onlyCostScale:TRUE,amount:FALSE,workDay:TRUE},4:{ref:'D2-2-2',name:'实施阶段造价咨询（铁路）',maxCoe:null,minCoe:null,defCoe:0.6,desc:'本系数适用于铁路工程。',isRoad:FALSE,isRailway:TRUE,isWaterway:FALSE,mutiple:FALSE,order:5,scale:TRUE,onlyCostScale:TRUE,amount:FALSE,workDay:TRUE},5:{ref:'D3',name:'基本造价咨询',maxCoe:null,minCoe:null,defCoe:null,desc:'',isRoad:TRUE,isRailway:TRUE,isWaterway:TRUE,mutiple:FALSE,order:6,scale:null,onlyCostScale:null,amount:null,workDay:null},6:{ref:'D3-1',name:'投资估算',maxCoe:null,minCoe:null,defCoe:0.1,desc:'委托同一咨询人同时负责D3-1和D3-2时，D3-1和D3-2的合计调整系数为0.25。',isRoad:TRUE,isRailway:TRUE,isWaterway:TRUE,mutiple:FALSE,order:7,scale:TRUE,onlyCostScale:TRUE,amount:FALSE,workDay:TRUE},7:{ref:'D3-2',name:'设计概算',maxCoe:null,minCoe:null,defCoe:0.2,desc:'',isRoad:TRUE,isRailway:TRUE,isWaterway:TRUE,mutiple:FALSE,order:8,scale:TRUE,onlyCostScale:TRUE,amount:FALSE,workDay:TRUE},8:{ref:'D3-3',name:'施工图预算',maxCoe:null,minCoe:null,defCoe:0.25,desc:'委托同一咨询人同时负责D3-3和D3-4时，D3-3和D3-4的合计调整系数为0.3。',isRoad:TRUE,isRailway:TRUE,isWaterway:TRUE,mutiple:FALSE,order:9,scale:TRUE,onlyCostScale:FALSE,amount:FALSE,workDay:TRUE},9:{ref:'D3-4',name:'招标工程量清单及清单预算（或最高投标限价）',maxCoe:null,minCoe:null,defCoe:0.15,desc:'',isRoad:TRUE,isRailway:TRUE,isWaterway:TRUE,mutiple:FALSE,order:10,scale:TRUE,onlyCostScale:FALSE,amount:FALSE,workDay:TRUE},10:{ref:'D3-5',name:'清理概算（仅限铁路）',maxCoe:null,minCoe:null,defCoe:0.2,desc:'本系数适用于铁路工程。',isRoad:FALSE,isRailway:TRUE,isWaterway:FALSE,mutiple:FALSE,order:11,scale:TRUE,onlyCostScale:TRUE,amount:FALSE,workDay:TRUE},11:{ref:'D3-6-1',name:'合同（工程）结算',maxCoe:null,minCoe:null,defCoe:0.3,desc:'本系数适用于公路和水运工程。',isRoad:TRUE,isRailway:FALSE,isWaterway:TRUE,mutiple:FALSE,order:12,scale:TRUE,onlyCostScale:FALSE,amount:FALSE,workDay:TRUE},12:{ref:'D3-6-2',name:'合同（工程）结算',maxCoe:null,minCoe:null,defCoe:0.2,desc:'本系数适用于铁路工程。',isRoad:FALSE,isRailway:TRUE,isWaterway:FALSE,mutiple:FALSE,order:13,scale:TRUE,onlyCostScale:FALSE,amount:FALSE,workDay:TRUE},13:{ref:'D3-7',name:'竣工决算',maxCoe:null,minCoe:null,defCoe:0.1,desc:'',isRoad:TRUE,isRailway:TRUE,isWaterway:TRUE,mutiple:FALSE,order:14,scale:TRUE,onlyCostScale:TRUE,amount:FALSE,workDay:TRUE},14:{ref:'D4',name:'专项造价咨询',maxCoe:null,minCoe:null,defCoe:null,desc:'',isRoad:TRUE,isRailway:TRUE,isWaterway:TRUE,mutiple:FALSE,order:15,scale:null,onlyCostScale:null,amount:null,workDay:null},15:{ref:'D4-1',name:'工程造价顾问',maxCoe:null,minCoe:null,defCoe:1,desc:'本表系数适用于采用工作量计价法基准预算的调整系数。',isRoad:TRUE,isRailway:TRUE,isWaterway:TRUE,mutiple:FALSE,order:16,scale:FALSE,onlyCostScale:null,amount:TRUE,workDay:TRUE},16:{ref:'D4-2',name:'造价政策制（修）订',maxCoe:null,minCoe:null,defCoe:1,desc:'',isRoad:TRUE,isRailway:TRUE,isWaterway:TRUE,mutiple:FALSE,order:17,scale:FALSE,onlyCostScale:null,amount:TRUE,workDay:TRUE},17:{ref:'D4-3',name:'造价科学与技术研究',maxCoe:null,minCoe:null,defCoe:1,desc:'',isRoad:TRUE,isRailway:TRUE,isWaterway:TRUE,mutiple:FALSE,order:18,scale:FALSE,onlyCostScale:null,amount:TRUE,workDay:TRUE},18:{ref:'D4-4',name:'定额测定',maxCoe:null,minCoe:null,defCoe:1,desc:'',isRoad:TRUE,isRailway:TRUE,isWaterway:TRUE,mutiple:FALSE,order:19,scale:FALSE,onlyCostScale:null,amount:TRUE,workDay:TRUE},19:{ref:'D4-5',name:'造价信息咨询',maxCoe:null,minCoe:null,defCoe:1,desc:'',isRoad:TRUE,isRailway:TRUE,isWaterway:TRUE,mutiple:FALSE,order:20,scale:FALSE,onlyCostScale:null,amount:TRUE,workDay:TRUE},20:{ref:'D4-6',name:'造价鉴定',maxCoe:null,minCoe:null,defCoe:0.5,desc:'本表系数适用于采用规模计价法基准预算的调整系数。',isRoad:TRUE,isRailway:TRUE,isWaterway:TRUE,mutiple:FALSE,order:21,scale:TRUE,onlyCostScale:FALSE,amount:FALSE,workDay:TRUE},21:{ref:'D4-7',name:'工程成本测算',maxCoe:null,minCoe:null,defCoe:0.1,desc:'',isRoad:TRUE,isRailway:TRUE,isWaterway:TRUE,mutiple:FALSE,order:22,scale:TRUE,onlyCostScale:FALSE,amount:FALSE,workDay:TRUE},22:{ref:'D4-8',name:'工程成本核算',maxCoe:null,minCoe:null,defCoe:0.1,desc:'',isRoad:TRUE,isRailway:TRUE,isWaterway:TRUE,mutiple:FALSE,order:23,scale:TRUE,onlyCostScale:FALSE,amount:FALSE,workDay:TRUE},23:{ref:'D4-9',name:'计算工程量',maxCoe:null,minCoe:null,defCoe:0.2,desc:'',isRoad:TRUE,isRailway:TRUE,isWaterway:TRUE,mutiple:FALSE,order:24,scale:TRUE,onlyCostScale:FALSE,amount:FALSE,workDay:TRUE},24:{ref:'D4-10',name:'工程变更费用咨询',maxCoe:null,minCoe:null,defCoe:0.5,desc:'',isRoad:TRUE,isRailway:TRUE,isWaterway:TRUE,mutiple:FALSE,order:25,scale:TRUE,onlyCostScale:FALSE,amount:FALSE,workDay:TRUE},25:{ref:'D4-11',name:'调整估算',maxCoe:0.2,minCoe:0.1,defCoe:0.15,desc:'',isRoad:TRUE,isRailway:TRUE,isWaterway:TRUE,mutiple:FALSE,order:26,scale:TRUE,onlyCostScale:TRUE,amount:FALSE,workDay:TRUE},26:{ref:'D4-12',name:'调整概算',maxCoe:0.3,minCoe:0.15,defCoe:0.225,desc:'本表系数适用于采用规模计价法基准预算的系数；依据其调整时期所在建设阶段和基础资料的不同，其系数取值不同。',isRoad:TRUE,isRailway:TRUE,isWaterway:TRUE,mutiple:FALSE,order:27,scale:TRUE,onlyCostScale:TRUE,amount:FALSE,workDay:TRUE},27:{ref:'D4-13',name:'造价检查',maxCoe:null,minCoe:null,defCoe:null,desc:'可按照服务工日数量×服务工日人工单价×综合预算系数；也可按照服务工日数量×服务工日综合预算单价。',isRoad:TRUE,isRailway:TRUE,isWaterway:TRUE,mutiple:FALSE,order:28,scale:FALSE,onlyCostScale:null,amount:FALSE,workDay:TRUE},28:{ref:'D4-14',name:'其他专项咨询',maxCoe:null,minCoe:null,defCoe:null,desc:'可参照相同或相似服务的系数。',isRoad:TRUE,isRailway:TRUE,isWaterway:TRUE,mutiple:FALSE,order:29,scale:FALSE,onlyCostScale:null,amount:FALSE,workDay:TRUE},29:{ref:'D4-15-1',name:'造价数据测试验证(估算)',maxCoe:null,minCoe:null,defCoe:0.04,desc:'委托同一咨询人同时负责D3-1和D3-2时，D3-1和D3-2的合计调整系数为0.25。',isRoad:TRUE,isRailway:TRUE,isWaterway:TRUE,mutiple:TRUE,order:30,scale:TRUE,onlyCostScale:TRUE,amount:FALSE,workDay:TRUE},30:{ref:'D4-15-2',name:'造价数据测试验证(概算)',maxCoe:null,minCoe:null,defCoe:0.08,desc:'',isRoad:TRUE,isRailway:TRUE,isWaterway:TRUE,mutiple:TRUE,order:31,scale:TRUE,onlyCostScale:TRUE,amount:FALSE,workDay:TRUE},31:{ref:'D4-15-3',name:'造价数据测试验证(施工图预算)',maxCoe:null,minCoe:null,defCoe:0.1,desc:'委托同一咨询人同时负责D3-3和D3-4时，D3-3和D3-4的合计调整系数为0.3。',isRoad:TRUE,isRailway:TRUE,isWaterway:TRUE,mutiple:TRUE,order:32,scale:TRUE,onlyCostScale:FALSE,amount:FALSE,workDay:TRUE},32:{ref:'D4-15-4',name:'造价数据测试验证(招标工程量清单及清单预算（或最高投标限价）)',maxCoe:null,minCoe:null,defCoe:0.06,desc:'',isRoad:TRUE,isRailway:TRUE,isWaterway:TRUE,mutiple:TRUE,order:33,scale:TRUE,onlyCostScale:FALSE,amount:FALSE,workDay:TRUE},33:{ref:'D4-15-5',name:'造价数据测试验证(清理概算（仅限铁路）)',maxCoe:null,minCoe:null,defCoe:0.08,desc:'本系数适用于铁路工程。',isRoad:FALSE,isRailway:TRUE,isWaterway:FALSE,mutiple:TRUE,order:34,scale:TRUE,onlyCostScale:TRUE,amount:FALSE,workDay:TRUE},34:{ref:'D4-15-6',name:'造价数据测试验证(合同（工程）结算)',maxCoe:null,minCoe:null,defCoe:0.12,desc:'本系数适用于公路和水运工程。',isRoad:TRUE,isRailway:FALSE,isWaterway:TRUE,mutiple:TRUE,order:35,scale:TRUE,onlyCostScale:FALSE,amount:FALSE,workDay:TRUE},35:{ref:'D4-15-7',name:'造价数据测试验证(合同（工程）结算)',maxCoe:null,minCoe:null,defCoe:0.08,desc:'本系数适用于铁路工程。',isRoad:FALSE,isRailway:TRUE,isWaterway:FALSE,mutiple:TRUE,order:36,scale:TRUE,onlyCostScale:FALSE,amount:FALSE,workDay:TRUE},36:{ref:'D4-15-8',name:'造价数据测试验证(竣工决算)',maxCoe:null,minCoe:null,defCoe:0.04,desc:'',isRoad:TRUE,isRailway:TRUE,isWaterway:TRUE,mutiple:TRUE,order:37,scale:TRUE,onlyCostScale:TRUE,amount:FALSE,workDay:TRUE},}"}]

{"sheet":"附录E","index":6,"n_rows":36,"n_cols":12,"rows_kept":36}
[{"$nulls":6},"hasCost","hasArea","isRoad","isRailway","isWaterway"]
["E1","交通运输工程通用专业","null",null,{"$f":"ROW()-2","v":0},{"$f":"ROW()-1","v":1},false,false,true,true,true,{"$f":"E2&\":{ref:'\"&A2&\"',name:'\"&B2&\"',maxCoe:null,minCoe:null,defCoe:\"&C2&\",desc:'\"&D2&\"',isRoad:\"&I2&\",isRailway:\"&J2&\",isWaterway:\"&K2&\",order:\"&F2&\",hasCost:\"&G2&\",hasArea:\"&H2&\"}\"","v":"0:{ref:'E1',name:'交通运输工程通用专业',maxCoe:null,minCoe:null,defCoe:null,desc:'',isRoad:TRUE,isRailway:TRUE,isWaterway:TRUE,order:1,hasCost:FALSE,hasArea:FALSE}"}]
["E1-1","征地（用海）补偿",1,"适用于交通建设项目征地（用海）补偿的施工图预算、招标工程量清单及清单预算（或最高投标限价）、清理概算（仅限铁路工程）、合同（工程）结算和造价鉴定、计算工程量、工程变更费用咨询、工程成本测（核）算",{"$f":"ROW()-2","v":1},{"$f":"ROW()-1","v":2},true,true,true,true,true,{"$f":"E3&\":{ref:'\"&A3&\"',name:'\"&B3&\"',maxCoe:null,minCoe:null,defCoe:\"&C3&\",desc:'\"&D3&\"',isRoad:\"&I3&\",isRailway:\"&J3&\",isWaterway:\"&K3&\",order:\"&F3&\",hasCost:\"&G3&\",hasArea:\"&H3&\"}\"","v":"1:{ref:'E1-1',name:'征地（用海）补偿',maxCoe:null,minCoe:null,defCoe:1,desc:'适用于交通建设项目征地（用海）补偿的施工图预算、招标工程量清单及清单预算（或最高投标限价）、清理概算（仅限铁路工程）、合同（工程）结算和造价鉴定、计算工程量、工程变更费用咨询、工程成本测（核）算',isRoad:TRUE,isRailway:TRUE,isWaterway:TRUE,order:2,hasCost:TRUE,hasArea:TRUE}"}]
["E1-2","拆迁补偿",2.5,"适用于交通建设项目拆迁补偿的施工图预算、招标工程量清单及清单预算（或最高投标限价）、清理概算（仅限铁路工程）、合同（工程）结算和造价鉴定、计算工程量、工程变更费用咨询、工程成本测（核）算",2,3,true,true,true,true,true,"2:{ref:'E1-2',name:'拆迁补偿',maxCoe:null,minCoe:null,defCoe:2.5,desc:'适用于交通建设项目拆迁补偿的施工图预算、招标工程量清单及清单预算（或最高投标限价）、清理概算（仅限铁路工程）、合同（工程）结算和造价鉴定、计算工程量、工程变更费用咨询、工程成本测（核）算',isRoad:TRUE,isRailway:TRUE,isWaterway:TRUE,order:3,hasCost:TRUE,hasArea:TRUE}"]
["E1-3","迁改工程",2,"适用于交通建设项目迁改工程的施工图预算、招标工程量清单及清单预算（或最高投标限价）、清理概算（仅限铁路工程）、合同（工程）结算和造价鉴定、计算工程量、工程变更费用咨询、工程成本测（核）算",3,4,true,false,true,true,true,"3:{ref:'E1-3',name:'迁改工程',maxCoe:null,minCoe:null,defCoe:2,desc:'适用于交通建设项目迁改工程的施工图预算、招标工程量清单及清单预算（或最高投标限价）、清理概算（仅限铁路工程）、合同（工程）结算和造价鉴定、计算工程量、工程变更费用咨询、工程成本测（核）算',isRoad:TRUE,isRailway:TRUE,isWaterway:TRUE,order:4,hasCost:TRUE,hasArea:FALSE}"]
["E1-4","工程建设其他费",1,"适用于交通建设项目的工程建设其他费的施工图预算、招标工程量清单及清单预算（或最高投标限价）、清理概算（仅限铁路工程）和造价鉴定、计算工程量、工程变更费用咨询、工程成本测（核）算",4,5,true,false,true,true,true,"4:{ref:'E1-4',name:'工程建设其他费',maxCoe:null,minCoe:null,defCoe:1,desc:'适用于交通建设项目的工程建设其他费的施工图预算、招标工程量清单及清单预算（或最高投标限价）、清理概算（仅限铁路工程）和造价鉴定、计算工程量、工程变更费用咨询、工程成本测（核）算',isRoad:TRUE,isRailway:TRUE,isWaterway:TRUE,order:5,hasCost:TRUE,hasArea:FALSE}"]
["E1-5","预备费",1,null,5,6,true,false,true,true,true,"5:{ref:'E1-5',name:'预备费',maxCoe:null,minCoe:null,defCoe:1,desc:'',isRoad:TRUE,isRailway:TRUE,isWaterway:TRUE,order:6,hasCost:TRUE,hasArea:FALSE}"]
["E1-6","建设期贷款利息",1,null,6,7,true,false,true,true,true,"6:{ref:'E1-6',name:'建设期贷款利息',maxCoe:null,minCoe:null,defCoe:1,desc:'',isRoad:TRUE,isRailway:TRUE,isWaterway:TRUE,order:7,hasCost:TRUE,hasArea:FALSE}"]
["E2","公路工程专业",1,"适用于公路工程的全过程造价咨询、分阶段造价咨询、投资估算、初步设计概算、竣工决算和调整估算、调整概算（含征地拆迁和工程建设其他费）",7,8,false,false,true,false,false,"7:{ref:'E2',name:'公路工程专业',maxCoe:null,minCoe:null,defCoe:1,desc:'适用于公路工程的全过程造价咨询、分阶段造价咨询、投资估算、初步设计概算、竣工决算和调整估算、调整概算（含征地拆迁和工程建设其他费）',isRoad:TRUE,isRailway:FALSE,isWaterway:FALSE,order:8,hasCost:FALSE,hasArea:FALSE}"]
["E2-1","临时工程",1,"适用于临时工程专业的施工图预算、招标工程量清单及清单预算（或最高投标限价）、合同（工程）结算和造价鉴定、计算工程量、工程变更费用咨询、工程成本测（核）算",8,9,true,false,true,false,false,"8:{ref:'E2-1',name:'临时工程',maxCoe:null,minCoe:null,defCoe:1,desc:'适用于临时工程专业的施工图预算、招标工程量清单及清单预算（或最高投标限价）、合同（工程）结算和造价鉴定、计算工程量、工程变更费用咨询、工程成本测（核）算',isRoad:TRUE,isRailway:FALSE,isWaterway:FALSE,order:9,hasCost:TRUE,hasArea:FALSE}"]
["E2-2","路基工程",1.2,"适用于路基工程专业的施工图预算、招标工程量清单及清单预算（或最高投标限价）、合同（工程）结算和造价鉴定、计算工程量、工程变更费用咨询、工程成本测（核）算",9,10,true,false,true,false,false,"9:{ref:'E2-2',name:'路基工程',maxCoe:null,minCoe:null,defCoe:1.2,desc:'适用于路基工程专业的施工图预算、招标工程量清单及清单预算（或最高投标限价）、合同（工程）结算和造价鉴定、计算工程量、工程变更费用咨询、工程成本测（核）算',isRoad:TRUE,isRailway:FALSE,isWaterway:FALSE,order:10,hasCost:TRUE,hasArea:FALSE}"]
["E2-3","路面工程",0.8,"适用于路面工程专业的施工图预算、招标工程量清单及清单预算（或最高投标限价）、合同（工程）结算和造价鉴定、计算工程量、工程变更费用咨询、工程成本测（核）算",10,11,true,false,true,false,false,"10:{ref:'E2-3',name:'路面工程',maxCoe:null,minCoe:null,defCoe:0.8,desc:'适用于路面工程专业的施工图预算、招标工程量清单及清单预算（或最高投标限价）、合同（工程）结算和造价鉴定、计算工程量、工程变更费用咨询、工程成本测（核）算',isRoad:TRUE,isRailway:FALSE,isWaterway:FALSE,order:11,hasCost:TRUE,hasArea:FALSE}"]
["E2-4","桥涵工程",0.9,"适用于桥梁涵洞工程专业的施工图预算、招标工程量清单及清单预算（或最高投标限价）、合同（工程）结算和造价鉴定、计算工程量、工程变更费用咨询、工程成本测（核）算",{"$f":"ROW()-2","v":11},{"$f":"ROW()-1","v":12},true,false,true,false,false,"11:{ref:'E2-4',name:'桥涵工程',maxCoe:null,minCoe:null,defCoe:0.9,desc:'适用于桥梁涵洞工程专业的施工图预算、招标工程量清单及清单预算（或最高投标限价）、合同（工程）结算和造价鉴定、计算工程量、工程变更费用咨询、工程成本测（核）算',isRoad:TRUE,isRailway:FALSE,isWaterway:FALSE,order:12,hasCost:TRUE,hasArea:FALSE}"]
["E2-5","隧道工程",1,"适用于隧道工程专业的施工图预算、招标工程量清单及清单预算（或最高投标限价）、合同（工程）结算和造价鉴定、计算工程量、工程变更费用咨询、工程成本测（核）算",12,13,true,false,true,false,false,"12:{ref:'E2-5',name:'隧道工程',maxCoe:null,minCoe:null,defCoe:1,desc:'适用于隧道工程专业的施工图预算、招标工程量清单及清单预算（或最高投标限价）、合同（工程）结算和造价鉴定、计算工程量、工程变更费用咨询、工程成本测（核）算',isRoad:TRUE,isRailway:FALSE,isWaterway:FALSE,order:13,hasCost:TRUE,hasArea:FALSE}"]
["E2-6","交叉工程",1.1,"适用于交叉工程专业的施工图预算、招标工程量清单及清单预算（或最高投标限价）、合同（工程）结算和造价鉴定、计算工程量、工程变更费用咨询、工程成本测（核）算",13,14,true,false,true,false,false,"13:{ref:'E2-6',name:'交叉工程',maxCoe:null,minCoe:null,defCoe:1.1,desc:'适用于交叉工程专业的施工图预算、招标工程量清单及清单预算（或最高投标限价）、合同（工程）结算和造价鉴定、计算工程量、工程变更费用咨询、工程成本测（核）算',isRoad:TRUE,isRailway:FALSE,isWaterway:FALSE,order:14,hasCost:TRUE,hasArea:FALSE}"]
["E2-7","机电工程",1.2,"适用于机电工程专业的施工图预算、招标工程量清单及清单预算（或最高投标限价）和造价鉴定、计算工程量、工程变更费用咨询、工程成本测（核）算",14,15,true,false,true,false,false,"14:{ref:'E2-7',name:'机电工程',maxCoe:null,minCoe:null,defCoe:1.2,desc:'适用于机电工程专业的施工图预算、招标工程量清单及清单预算（或最高投标限价）和造价鉴定、计算工程量、工程变更费用咨询、工程成本测（核）算',isRoad:TRUE,isRailway:FALSE,isWaterway:FALSE,order:15,hasCost:TRUE,hasArea:FALSE}"]
["E2-8","交通安全设施工程",1.2,"适用于交通安全设施工程专业的施工图预算、招标工程量清单及清单预算（或最高投标限价）和造价鉴定、计算工程量、工程变更费用咨询、工程成本测（核）算",15,16,true,false,true,false,false,"15:{ref:'E2-8',name:'交通安全设施工程',maxCoe:null,minCoe:null,defCoe:1.2,desc:'适用于交通安全设施工程专业的施工图预算、招标工程量清单及清单预算（或最高投标限价）和造价鉴定、计算工程量、工程变更费用咨询、工程成本测（核）算',isRoad:TRUE,isRailway:FALSE,isWaterway:FALSE,order:16,hasCost:TRUE,hasArea:FALSE}"]
["E2-9","绿化及环境保护工程",1.2,"适用于绿化工程专业的施工图预算、招标工程量清单及清单预算（或最高投标限价）和造价鉴定、计算工程量、工程变更费用咨询、工程成本测（核）算",16,17,true,false,true,false,false,"16:{ref:'E2-9',name:'绿化及环境保护工程',maxCoe:null,minCoe:null,defCoe:1.2,desc:'适用于绿化工程专业的施工图预算、招标工程量清单及清单预算（或最高投标限价）和造价鉴定、计算工程量、工程变更费用咨询、工程成本测（核）算',isRoad:TRUE,isRailway:FALSE,isWaterway:FALSE,order:17,hasCost:TRUE,hasArea:FALSE}"]
["E2-10","房建工程",2.5,"适用于房建工程专业的施工图预算、招标工程量清单及清单预算（或最高投标限价）、合同（工程）结算和造价鉴定、计算工程量、工程变更费用咨询、工程成本测（核）算",17,18,true,false,true,false,false,"17:{ref:'E2-10',name:'房建工程',maxCoe:null,minCoe:null,defCoe:2.5,desc:'适用于房建工程专业的施工图预算、招标工程量清单及清单预算（或最高投标限价）、合同（工程）结算和造价鉴定、计算工程量、工程变更费用咨询、工程成本测（核）算',isRoad:TRUE,isRailway:FALSE,isWaterway:FALSE,order:18,hasCost:TRUE,hasArea:FALSE}"]
["E3","铁路工程专业",1,"适用于铁路工程的投资估算、初步设计概算、清理概算、竣工决算和调整估算、调整概算（含征地拆迁和工程建设其他费）",18,19,false,false,false,true,false,"18:{ref:'E3',name:'铁路工程专业',maxCoe:null,minCoe:null,defCoe:1,desc:'适用于铁路工程的投资估算、初步设计概算、清理概算、竣工决算和调整估算、调整概算（含征地拆迁和工程建设其他费）',isRoad:FALSE,isRailway:TRUE,isWaterway:FALSE,order:19,hasCost:FALSE,hasArea:FALSE}"]
["E3-1","大型临时设施和过渡工程",1,"适用于大型临时设施和过渡工程专业的施工图预算、招标工程量清单及清单预算（或最高投标限价）、合同（工程）结算和造价鉴定、计算工程量、工程变更费用咨询、工程成本测（核）算",19,20,true,false,false,true,false,"19:{ref:'E3-1',name:'大型临时设施和过渡工程',maxCoe:null,minCoe:null,defCoe:1,desc:'适用于大型临时设施和过渡工程专业的施工图预算、招标工程量清单及清单预算（或最高投标限价）、合同（工程）结算和造价鉴定、计算工程量、工程变更费用咨询、工程成本测（核）算',isRoad:FALSE,isRailway:TRUE,isWaterway:FALSE,order:20,hasCost:TRUE,hasArea:FALSE}"]
["E3-2","路基工程",1.2,"适用于路基工程专业的施工图预算、招标工程量清单及清单预算（或最高投标限价）、合同（工程）结算和造价鉴定、计算工程量、工程变更费用咨询、工程成本测（核）算",20,21,true,false,false,true,false,"20:{ref:'E3-2',name:'路基工程',maxCoe:null,minCoe:null,defCoe:1.2,desc:'适用于路基工程专业的施工图预算、招标工程量清单及清单预算（或最高投标限价）、合同（工程）结算和造价鉴定、计算工程量、工程变更费用咨询、工程成本测（核）算',isRoad:FALSE,isRailway:TRUE,isWaterway:FALSE,order:21,hasCost:TRUE,hasArea:FALSE}"]
["E3-3","桥涵工程",0.9,"适用于桥涵工程专业的施工图预算、招标工程量清单及清单预算（或最高投标限价）、合同（工程）结算和造价鉴定、计算工程量、工程变更费用咨询、工程成本测（核）算",{"$f":"ROW()-2","v":21},{"$f":"ROW()-1","v":22},true,false,false,true,false,"21:{ref:'E3-3',name:'桥涵工程',maxCoe:null,minCoe:null,defCoe:0.9,desc:'适用于桥涵工程专业的施工图预算、招标工程量清单及清单预算（或最高投标限价）、合同（工程）结算和造价鉴定、计算工程量、工程变更费用咨询、工程成本测（核）算',isRoad:FALSE,isRailway:TRUE,isWaterway:FALSE,order:22,hasCost:TRUE,hasArea:FALSE}"]
["E3-4","隧道及明洞工程",1,"适用于隧道及明洞工程专业的施工图预算、招标工程量清单及清单预算（或最高投标限价）、合同（工程）结算、竣工决算和造价鉴定、计算工程量、工程变更费用咨询、工程成本测（核）算",22,23,true,false,false,true,false,"22:{ref:'E3-4',name:'隧道及明洞工程',maxCoe:null,minCoe:null,defCoe:1,desc:'适用于隧道及明洞工程专业的施工图预算、招标工程量清单及清单预算（或最高投标限价）、合同（工程）结算、竣工决算和造价鉴定、计算工程量、工程变更费用咨询、工程成本测（核）算',isRoad:FALSE,isRailway:TRUE,isWaterway:FALSE,order:23,hasCost:TRUE,hasArea:FALSE}"]
["E3-5","轨道工程",0.3,"适用于轨道工程专业的施工图预算、招标工程量清单及清单预算（或最高投标限价）、合同（工程）结算和造价鉴定、计算工程量、工程变更费用咨询、工程成本测（核）算",23,24,true,false,false,true,false,"23:{ref:'E3-5',name:'轨道工程',maxCoe:null,minCoe:null,defCoe:0.3,desc:'适用于轨道工程专业的施工图预算、招标工程量清单及清单预算（或最高投标限价）、合同（工程）结算和造价鉴定、计算工程量、工程变更费用咨询、工程成本测（核）算',isRoad:FALSE,isRailway:TRUE,isWaterway:FALSE,order:24,hasCost:TRUE,hasArea:FALSE}"]
["E3-6","通信、信号、信息及灾害监测工程",2,"适用于通信、信号、信息及防灾监测工程专业的施工图预算、招标工程量清单及清单预算（或最高投标限价）、合同（工程）结算和造价鉴定、计算工程量、工程变更费用咨询、工程成本测（核）算",24,25,true,false,false,true,false,"24:{ref:'E3-6',name:'通信、信号、信息及灾害监测工程',maxCoe:null,minCoe:null,defCoe:2,desc:'适用于通信、信号、信息及防灾监测工程专业的施工图预算、招标工程量清单及清单预算（或最高投标限价）、合同（工程）结算和造价鉴定、计算工程量、工程变更费用咨询、工程成本测（核）算',isRoad:FALSE,isRailway:TRUE,isWaterway:FALSE,order:25,hasCost:TRUE,hasArea:FALSE}"]
["E3-7","电力及电力牵引供电工程",1.5,"适用于电力及电力牵引供电工程专业的施工图预算、招标工程量清单及清单预算（或最高投标限价）、合同（工程）结算和造价鉴定、计算工程量、工程变更费用咨询、工程成本测（核）算",25,26,true,false,false,true,false,"25:{ref:'E3-7',name:'电力及电力牵引供电工程',maxCoe:null,minCoe:null,defCoe:1.5,desc:'适用于电力及电力牵引供电工程专业的施工图预算、招标工程量清单及清单预算（或最高投标限价）、合同（工程）结算和造价鉴定、计算工程量、工程变更费用咨询、工程成本测（核）算',isRoad:FALSE,isRailway:TRUE,isWaterway:FALSE,order:26,hasCost:TRUE,hasArea:FALSE}"]
["E3-8","房建工程（房屋建筑及附属工程）",2.5,"适用于房屋建筑及附属工程专业的施工图预算、招标工程量清单及清单预算（或最高投标限价）、合同（工程）结算和造价鉴定、计算工程量、工程变更费用咨询、工程成本测（核）算",26,27,true,false,false,true,false,"26:{ref:'E3-8',name:'房建工程（房屋建筑及附属工程）',maxCoe:null,minCoe:null,defCoe:2.5,desc:'适用于房屋建筑及附属工程专业的施工图预算、招标工程量清单及清单预算（或最高投标限价）、合同（工程）结算和造价鉴定、计算工程量、工程变更费用咨询、工程成本测（核）算',isRoad:FALSE,isRailway:TRUE,isWaterway:FALSE,order:27,hasCost:TRUE,hasArea:FALSE}"]
["E3-9","装饰装修工程",2.7,"适用于装饰装修工程专业的施工图预算、招标工程量清单及清单预算（或最高投标限价）、合同（工程）结算和造价鉴定、计算工程量、工程变更费用咨询、工程成本测（核）算",27,28,true,false,false,true,false,"27:{ref:'E3-9',name:'装饰装修工程',maxCoe:null,minCoe:null,defCoe:2.7,desc:'适用于装饰装修工程专业的施工图预算、招标工程量清单及清单预算（或最高投标限价）、合同（工程）结算和造价鉴定、计算工程量、工程变更费用咨询、工程成本测（核）算',isRoad:FALSE,isRailway:TRUE,isWaterway:FALSE,order:28,hasCost:TRUE,hasArea:FALSE}"]
["E4","水运工程专业",1,"适用于水运工程的投资估算、初步设计概算、竣工决算和调整估算、调整概算（含征地拆迁和工程建设其他费）",28,29,false,false,false,false,true,"28:{ref:'E4',name:'水运工程专业',maxCoe:null,minCoe:null,defCoe:1,desc:'适用于水运工程的投资估算、初步设计概算、竣工决算和调整估算、调整概算（含征地拆迁和工程建设其他费）',isRoad:FALSE,isRailway:FALSE,isWaterway:TRUE,order:29,hasCost:FALSE,hasArea:FALSE}"]
["E4-1","临时工程",1.1,"适用于临时工程专业的施工图预算、招标工程量清单及清单预算（或最高投标限价）、合同（工程）结算、竣工决算和造价鉴定、计算工程量、工程变更费用咨询、工程成本测（核）算",29,30,true,false,false,false,true,"29:{ref:'E4-1',name:'临时工程',maxCoe:null,minCoe:null,defCoe:1.1,desc:'适用于临时工程专业的施工图预算、招标工程量清单及清单预算（或最高投标限价）、合同（工程）结算、竣工决算和造价鉴定、计算工程量、工程变更费用咨询、工程成本测（核）算',isRoad:FALSE,isRailway:FALSE,isWaterway:TRUE,order:30,hasCost:TRUE,hasArea:FALSE}"]
["E4-2","土建工程",1,"适用于土建工程专业的施工图预算、招标工程量清单及清单预算（或最高投标限价）、合同（工程）结算、竣工决算和造价鉴定、计算工程量、工程变更费用咨询、工程成本测（核）算",30,31,true,false,false,false,true,"30:{ref:'E4-2',name:'土建工程',maxCoe:null,minCoe:null,defCoe:1,desc:'适用于土建工程专业的施工图预算、招标工程量清单及清单预算（或最高投标限价）、合同（工程）结算、竣工决算和造价鉴定、计算工程量、工程变更费用咨询、工程成本测（核）算',isRoad:FALSE,isRailway:FALSE,isWaterway:TRUE,order:31,hasCost:TRUE,hasArea:FALSE}"]
["E4-3","机电与金属结构工程",1.5,"适用于机电与金属结构专业的施工图预算、招标工程量清单及清单预算（或最高投标限价）、合同（工程）结算和造价鉴定、计算工程量、工程变更费用咨询、工程成本测（核）算",31,32,true,false,false,false,true,"31:{ref:'E4-3',name:'机电与金属结构工程',maxCoe:null,minCoe:null,defCoe:1.5,desc:'适用于机电与金属结构专业的施工图预算、招标工程量清单及清单预算（或最高投标限价）、合同（工程）结算和造价鉴定、计算工程量、工程变更费用咨询、工程成本测（核）算',isRoad:FALSE,isRailway:FALSE,isWaterway:TRUE,order:32,hasCost:TRUE,hasArea:FALSE}"]
["E4-4","设备工程",1.5,"适用于设备工程专业的施工图预算、招标工程量清单及清单预算（或最高投标限价）、合同（工程）结算和造价鉴定、计算工程量、工程变更费用咨询、工程成本测（核）算",32,33,true,false,false,false,true,"32:{ref:'E4-4',name:'设备工程',maxCoe:null,minCoe:null,defCoe:1.5,desc:'适用于设备工程专业的施工图预算、招标工程量清单及清单预算（或最高投标限价）、合同（工程）结算和造价鉴定、计算工程量、工程变更费用咨询、工程成本测（核）算',isRoad:FALSE,isRailway:FALSE,isWaterway:TRUE,order:33,hasCost:TRUE,hasArea:FALSE}"]
["E4-5","附属房建工程（房屋建筑及附属工程）",2.5,"适用于房屋建筑与水运附属工程专业的施工图预算、招标工程量清单及清单预算（或最高投标限价）、合同（工程）结算和造价鉴定、计算工程量、工程变更费用咨询、工程成本测（核）算",33,34,true,false,false,false,true,"33:{ref:'E4-5',name:'附属房建工程（房屋建筑及附属工程）',maxCoe:null,minCoe:null,defCoe:2.5,desc:'适用于房屋建筑与水运附属工程专业的施工图预算、招标工程量清单及清单预算（或最高投标限价）、合同（工程）结算和造价鉴定、计算工程量、工程变更费用咨询、工程成本测（核）算',isRoad:FALSE,isRailway:FALSE,isWaterway:TRUE,order:34,hasCost:TRUE,hasArea:FALSE}"]
[{"$nulls":11},{"$f":"\"{\"&_xlfn.TEXTJOIN(\",\",TRUE,L2:L35)&\",}\"","v":"{0:{ref:'E1',name:'交通运输工程通用专业',maxCoe:null,minCoe:null,defCoe:null,desc:'',isRoad:TRUE,isRailway:TRUE,isWaterway:TRUE,order:1,hasCost:FALSE,hasArea:FALSE},1:{ref:'E1-1',name:'征地（用海）补偿',maxCoe:null,minCoe:null,defCoe:1,desc:'适用于交通建设项目征地（用海）补偿的施工图预算、招标工程量清单及清单预算（或最高投标限价）、清理概算（仅限铁路工程）、合同（工程）结算和造价鉴定、计算工程量、工程变更费用咨询、工程成本测（核）算',isRoad:TRUE,isRailway:TRUE,isWaterway:TRUE,order:2,hasCost:TRUE,hasArea:TRUE},2:{ref:'E1-2',name:'拆迁补偿',maxCoe:null,minCoe:null,defCoe:2.5,desc:'适用于交通建设项目拆迁补偿的施工图预算、招标工程量清单及清单预算（或最高投标限价）、清理概算（仅限铁路工程）、合同（工程）结算和造价鉴定、计算工程量、工程变更费用咨询、工程成本测（核）算',isRoad:TRUE,isRailway:TRUE,isWaterway:TRUE,order:3,hasCost:TRUE,hasArea:TRUE},3:{ref:'E1-3',name:'迁改工程',maxCoe:null,minCoe:null,defCoe:2,desc:'适用于交通建设项目迁改工程的施工图预算、招标工程量清单及清单预算（或最高投标限价）、清理概算（仅限铁路工程）、合同（工程）结算和造价鉴定、计算工程量、工程变更费用咨询、工程成本测（核）算',isRoad:TRUE,isRailway:TRUE,isWaterway:TRUE,order:4,hasCost:TRUE,hasArea:FALSE},4:{ref:'E1-4',name:'工程建设其他费',maxCoe:null,minCoe:null,defCoe:1,desc:'适用于交通建设项目的工程建设其他费的施工图预算、招标工程量清单及清单预算（或最高投标限价）、清理概算（仅限铁路工程）和造价鉴定、计算工程量、工程变更费用咨询、工程成本测（核）算',isRoad:TRUE,isRailway:TRUE,isWaterway:TRUE,order:5,hasCost:TRUE,hasArea:FALSE},5:{ref:'E1-5',name:'预备费',maxCoe:null,minCoe:null,defCoe:1,desc:'',isRoad:TRUE,isRailway:TRUE,isWaterway:TRUE,order:6,hasCost:TRUE,hasArea:FALSE},6:{ref:'E1-6',name:'建设期贷款利息',maxCoe:null,minCoe:null,defCoe:1,desc:'',isRoad:TRUE,isRailway:TRUE,isWaterway:TRUE,order:7,hasCost:TRUE,hasArea:FALSE},7:{ref:'E2',name:'公路工程专业',maxCoe:null,minCoe:null,defCoe:1,desc:'适用于公路工程的全过程造价咨询、分阶段造价咨询、投资估算、初步设计概算、竣工决算和调整估算、调整概算（含征地拆迁和工程建设其他费）',isRoad:TRUE,isRailway:FALSE,isWaterway:FALSE,order:8,hasCost:FALSE,hasArea:FALSE},8:{ref:'E2-1',name:'临时工程',maxCoe:null,minCoe:null,defCoe:1,desc:'适用于临时工程专业的施工图预算、招标工程量清单及清单预算（或最高投标限价）、合同（工程）结算和造价鉴定、计算工程量、工程变更费用咨询、工程成本测（核）算',isRoad:TRUE,isRailway:FALSE,isWaterway:FALSE,order:9,hasCost:TRUE,hasArea:FALSE},9:{ref:'E2-2',name:'路基工程',maxCoe:null,minCoe:null,defCoe:1.2,desc:'适用于路基工程专业的施工图预算、招标工程量清单及清单预算（或最高投标限价）、合同（工程）结算和造价鉴定、计算工程量、工程变更费用咨询、工程成本测（核）算',isRoad:TRUE,isRailway:FALSE,isWaterway:FALSE,order:10,hasCost:TRUE,hasArea:FALSE},10:{ref:'E2-3',name:'路面工程',maxCoe:null,minCoe:null,defCoe:0.8,desc:'适用于路面工程专业的施工图预算、招标工程量清单及清单预算（或最高投标限价）、合同（工程）结算和造价鉴定、计算工程量、工程变更费用咨询、工程成本测（核）算',isRoad:TRUE,isRailway:FALSE,isWaterway:FALSE,order:11,hasCost:TRUE,hasArea:FALSE},11:{ref:'E2-4',name:'桥涵工程',maxCoe:null,minCoe:null,defCoe:0.9,desc:'适用于桥梁涵洞工程专业的施工图预算、招标工程量清单及清单预算（或最高投标限价）、合同（工程）结算和造价鉴定、计算工程量、工程变更费用咨询、工程成本测（核）算',isRoad:TRUE,isRailway:FALSE,isWaterway:FALSE,order:12,hasCost:TRUE,hasArea:FALSE},12:{ref:'E2-5',name:'隧道工程',maxCoe:null,minCoe:null,defCoe:1,desc:'适用于隧道工程专业的施工图预算、招标工程量清单及清单预算（或最高投标限价）、合同（工程）结算和造价鉴定、计算工程量、工程变更费用咨询、工程成本测（核）算',isRoad:TRUE,isRailway:FALSE,isWaterway:FALSE,order:13,hasCost:TRUE,hasArea:FALSE},13:{ref:'E2-6',name:'交叉工程',maxCoe:null,minCoe:null,defCoe:1.1,desc:'适用于交叉工程专业的施工图预算、招标工程量清单及清单预算（或最高投标限价）、合同（工程）结算和造价鉴定、计算工程量、工程变更费用咨询、工程成本测（核）算',isRoad:TRUE,isRailway:FALSE,isWaterway:FALSE,order:14,hasCost:TRUE,hasArea:FALSE},14:{ref:'E2-7',name:'机电工程',maxCoe:null,minCoe:null,defCoe:1.2,desc:'适用于机电工程专业的施工图预算、招标工程量清单及清单预算（或最高投标限价）和造价鉴定、计算工程量、工程变更费用咨询、工程成本测（核）算',isRoad:TRUE,isRailway:FALSE,isWaterway:FALSE,order:15,hasCost:TRUE,hasArea:FALSE},15:{ref:'E2-8',name:'交通安全设施工程',maxCoe:null,minCoe:null,defCoe:1.2,desc:'适用于交通安全设施工程专业的施工图预算、招标工程量清单及清单预算（或最高投标限价）和造价鉴定、计算工程量、工程变更费用咨询、工程成本测（核）算',isRoad:TRUE,isRailway:FALSE,isWaterway:FALSE,order:16,hasCost:TRUE,hasArea:FALSE},16:{ref:'E2-9',name:'绿化及环境保护工程',maxCoe:null,minCoe:null,defCoe:1.2,desc:'适用于绿化工程专业的施工图预算、招标工程量清单及清单预算（或最高投标限价）和造价鉴定、计算工程量、工程变更费用咨询、工程成本测（核）算',isRoad:TRUE,isRailway:FALSE,isWaterway:FALSE,order:17,hasCost:TRUE,hasArea:FALSE},17:{ref:'E2-10',name:'房建工程',maxCoe:null,minCoe:null,defCoe:2.5,desc:'适用于房建工程专业的施工图预算、招标工程量清单及清单预算（或最高投标限价）、合同（工程）结算和造价鉴定、计算工程量、工程变更费用咨询、工程成本测（核）算',isRoad:TRUE,isRailway:FALSE,isWaterway:FALSE,order:18,hasCost:TRUE,hasArea:FALSE},18:{ref:'E3',name:'铁路工程专业',maxCoe:null,minCoe:null,defCoe:1,desc:'适用于铁路工程的投资估算、初步设计概算、清理概算、竣工决算和调整估算、调整概算（含征地拆迁和工程建设其他费）',isRoad:FALSE,isRailway:TRUE,isWaterway:FALSE,order:19,hasCost:FALSE,hasArea:FALSE},19:{ref:'E3-1',name:'大型临时设施和过渡工程',maxCoe:null,minCoe:null,defCoe:1,desc:'适用于大型临时设施和过渡工程专业的施工图预算、招标工程量清单及清单预算（或最高投标限价）、合同（工程）结算和造价鉴定、计算工程量、工程变更费用咨询、工程成本测（核）算',isRoad:FALSE,isRailway:TRUE,isWaterway:FALSE,order:20,hasCost:TRUE,hasArea:FALSE},20:{ref:'E3-2',name:'路基工程',maxCoe:null,minCoe:null,defCoe:1.2,desc:'适用于路基工程专业的施工图预算、招标工程量清单及清单预算（或最高投标限价）、合同（工程）结算和造价鉴定、计算工程量、工程变更费用咨询、工程成本测（核）算',isRoad:FALSE,isRailway:TRUE,isWaterway:FALSE,order:21,hasCost:TRUE,hasArea:FALSE},21:{ref:'E3-3',name:'桥涵工程',maxCoe:null,minCoe:null,defCoe:0.9,desc:'适用于桥涵工程专业的施工图预算、招标工程量清单及清单预算（或最高投标限价）、合同（工程）结算和造价鉴定、计算工程量、工程变更费用咨询、工程成本测（核）算',isRoad:FALSE,isRailway:TRUE,isWaterway:FALSE,order:22,hasCost:TRUE,hasArea:FALSE},22:{ref:'E3-4',name:'隧道及明洞工程',maxCoe:null,minCoe:null,defCoe:1,desc:'适用于隧道及明洞工程专业的施工图预算、招标工程量清单及清单预算（或最高投标限价）、合同（工程）结算、竣工决算和造价鉴定、计算工程量、工程变更费用咨询、工程成本测（核）算',isRoad:FALSE,isRailway:TRUE,isWaterway:FALSE,order:23,hasCost:TRUE,hasArea:FALSE},23:{ref:'E3-5',name:'轨道工程',maxCoe:null,minCoe:null,defCoe:0.3,desc:'适用于轨道工程专业的施工图预算、招标工程量清单及清单预算（或最高投标限价）、合同（工程）结算和造价鉴定、计算工程量、工程变更费用咨询、工程成本测（核）算',isRoad:FALSE,isRailway:TRUE,isWaterway:FALSE,order:24,hasCost:TRUE,hasArea:FALSE},24:{ref:'E3-6',name:'通信、信号、信息及灾害监测工程',maxCoe:null,minCoe:null,defCoe:2,desc:'适用于通信、信号、信息及防灾监测工程专业的施工图预算、招标工程量清单及清单预算（或最高投标限价）、合同（工程）结算和造价鉴定、计算工程量、工程变更费用咨询、工程成本测（核）算',isRoad:FALSE,isRailway:TRUE,isWaterway:FALSE,order:25,hasCost:TRUE,hasArea:FALSE},25:{ref:'E3-7',name:'电力及电力牵引供电工程',maxCoe:null,minCoe:null,defCoe:1.5,desc:'适用于电力及电力牵引供电工程专业的施工图预算、招标工程量清单及清单预算（或最高投标限价）、合同（工程）结算和造价鉴定、计算工程量、工程变更费用咨询、工程成本测（核）算',isRoad:FALSE,isRailway:TRUE,isWaterway:FALSE,order:26,hasCost:TRUE,hasArea:FALSE},26:{ref:'E3-8',name:'房建工程（房屋建筑及附属工程）',maxCoe:null,minCoe:null,defCoe:2.5,desc:'适用于房屋建筑及附属工程专业的施工图预算、招标工程量清单及清单预算（或最高投标限价）、合同（工程）结算和造价鉴定、计算工程量、工程变更费用咨询、工程成本测（核）算',isRoad:FALSE,isRailway:TRUE,isWaterway:FALSE,order:27,hasCost:TRUE,hasArea:FALSE},27:{ref:'E3-9',name:'装饰装修工程',maxCoe:null,minCoe:null,defCoe:2.7,desc:'适用于装饰装修工程专业的施工图预算、招标工程量清单及清单预算（或最高投标限价）、合同（工程）结算和造价鉴定、计算工程量、工程变更费用咨询、工程成本测（核）算',isRoad:FALSE,isRailway:TRUE,isWaterway:FALSE,order:28,hasCost:TRUE,hasArea:FALSE},28:{ref:'E4',name:'水运工程专业',maxCoe:null,minCoe:null,defCoe:1,desc:'适用于水运工程的投资估算、初步设计概算、竣工决算和调整估算、调整概算（含征地拆迁和工程建设其他费）',isRoad:FALSE,isRailway:FALSE,isWaterway:TRUE,order:29,hasCost:FALSE,hasArea:FALSE},29:{ref:'E4-1',name:'临时工程',maxCoe:null,minCoe:null,defCoe:1.1,desc:'适用于临时工程专业的施工图预算、招标工程量清单及清单预算（或最高投标限价）、合同（工程）结算、竣工决算和造价鉴定、计算工程量、工程变更费用咨询、工程成本测（核）算',isRoad:FALSE,isRailway:FALSE,isWaterway:TRUE,order:30,hasCost:TRUE,hasArea:FALSE},30:{ref:'E4-2',name:'土建工程',maxCoe:null,minCoe:null,defCoe:1,desc:'适用于土建工程专业的施工图预算、招标工程量清单及清单预算（或最高投标限价）、合同（工程）结算、竣工决算和造价鉴定、计算工程量、工程变更费用咨询、工程成本测（核）算',isRoad:FALSE,isRailway:FALSE,isWaterway:TRUE,order:31,hasCost:TRUE,hasArea:FALSE},31:{ref:'E4-3',name:'机电与金属结构工程',maxCoe:null,minCoe:null,defCoe:1.5,desc:'适用于机电与金属结构专业的施工图预算、招标工程量清单及清单预算（或最高投标限价）、合同（工程）结算和造价鉴定、计算工程量、工程变更费用咨询、工程成本测（核）算',isRoad:FALSE,isRailway:FALSE,isWaterway:TRUE,order:32,hasCost:TRUE,hasArea:FALSE},32:{ref:'E4-4',name:'设备工程',maxCoe:null,minCoe:null,defCoe:1.5,desc:'适用于设备工程专业的施工图预算、招标工程量清单及清单预算（或最高投标限价）、合同（工程）结算和造价鉴定、计算工程量、工程变更费用咨询、工程成本测（核）算',isRoad:FALSE,isRailway:FALSE,isWaterway:TRUE,order:33,hasCost:TRUE,hasArea:FALSE},33:{ref:'E4-5',name:'附属房建工程（房屋建筑及附属工程）',maxCoe:null,minCoe:null,defCoe:2.5,desc:'适用于房屋建筑与水运附属工程专业的施工图预算、招标工程量清单及清单预算（或最高投标限价）、合同（工程）结算和造价鉴定、计算工程量、工程变更费用咨询、工程成本测（核）算',isRoad:FALSE,isRailway:FALSE,isWaterway:TRUE,order:34,hasCost:TRUE,hasArea:FALSE},}"}]